Workbook

Sheet README
A10: TOPIC: | B10: NHS Expenditure & Health Tool (NEHT) | D10: Contents (click links to access):
A11: SUBJECT: | B11: Interactive spreadsheet | D11: Chart
A12: SOURCE: | B12: Various, for full details visit | D12: How to copy tables and charts
B13: www.publichealthwalesobservatory.org/NEHT
A14: GEOGRAPHY: | B14: England, Wales and Local Health Boards
A15: PERIOD: | B15: Various, for full details visit
B16: www.publichealthwalesobservatory.org/NEHT
A17: DEMOGRAPHY: | B17: Various, for full details visit
B18: www.publichealthwalesobservatory.org/NEHT
A19: STATISTICS: | B19: Various, for full details visit
B20: www.publichealthwalesobservatory.org/NEHT
A21: NOTES:

Sheet Copy tables and charts
M2: Figure 1
A7: Copying and pasting charts and tables to use in documents, reports or presentations
A9: Why use this method to copy and paste charts
A10: If the standard {Copy} and {Paste} option is used for inserting Excel charts into documents, reports
A11: or presentations then frequently the chart will lose some of its formatting and/or the axes labels may be
A12: truncated. Similarly, table column sizes are often distorted using the standard {Copy} and {Paste}
A13: method if a table is too wide. The technique descibed below overcomes these issues.
A15: Copying and pasting a chart
A16: 1 | B16: Select the chart you want to copy by left clicking on it once i.e. so that the surronding points are
B17: displayed
A18: 2 | B18: On the 'Home' tab click the paste icon
A19: 3 | B19: Click 'As picture' option and 'Copy as picture' (see figure 1)
A20: 4 | B20: Choose 'As shown on screen' and 'picture'
A21: 5 | B21: Using your mouse click on the point where you want to insert a copy of the chart e.g. in a Word
B22: document / presentation
A23: 6 | B23: On the 'Home' tab click 'paste' then 'paste special' and choose to insert as 'Picture (enhanced metafile)'
M25: Figure 2
A27: Copying and pasting a table as a picture
A28: 1 | B28: Highlight the table you want to copy by left clicking on the top left hand corner
B29: and dragging the mouse to the bottom right corner.
A30: 2 | B30: On the 'Home' tab click the paste icon
A31: 3 | B31: Click 'As picture' option and 'Copy as picture' (see figure 2)
A32: 4 | B32: Choose 'As shown on screen' and 'picture'
A33: 5 | B33: Using your mouse click on the point where you want to insert a copy of the chart e.g. in a Word
B34: document / presentation
A35: 6 | B35: On the 'Home' tab click 'paste' then 'paste special' and choose to insert as 'Picture (enhanced metafile)'

Sheet HBcomp
A35: ='HB comp controls'!B63 -> Expenditure per capita for problems of the circulatory system with selected indicators, Wales health boards & England
B36: ='HB comp controls'!H100 -> Expenditure per capita (£) | C36: ='HB comp controls'!L74 -> Current smoker status, adults (1) | D36: ='HB comp controls'!L75 -> % of smokers treated by Stop Smoking Wales (2) | E36: ='HB comp controls'!L76 -> QOF CHD register, % of list size (3) | F36: ='HB comp controls'!L77 -> Elective hospital admissions, any mention of revascularisation (4) | G36: ='HB comp controls'!L78 -> Mortality from circulatory disease, under 75 (5) | H36: ='HB comp controls'!L79 ->  | I36: ='HB comp controls'!L80 ->  | J36: ='HB comp controls'!L81 ->  | K36: ='HB comp controls'!L82 ->  | L36: ='HB comp controls'!L83 -> 
A37: Betsi Cadwaladr University | B37: =IFERROR('HB comp controls'!C37," ") -> 172.2 | C37: =IFERROR('HB comp controls'!D37," ") -> 22.36430543 | D37: =IFERROR('HB comp controls'!E37," ") -> 1.05682304 | E37: =IFERROR('HB comp controls'!F37," ") -> 4.242464546 | F37: =IFERROR('HB comp controls'!G37," ") -> 64.20895011 | G37: =IFERROR('HB comp controls'!H37," ") -> 98.2097866 | H37: =IFERROR('HB comp controls'!I37," ") ->  | I37: =IFERROR('HB comp controls'!J37," ") ->  | J37: =IFERROR('HB comp controls'!K37," ") ->  | K37: =IFERROR('HB comp controls'!L37," ") ->  | L37: =IFERROR('HB comp controls'!M37," ") -> 
A38: Powys Teaching | B38: =IFERROR('HB comp controls'!C38," ") -> 183.4 | C38: =IFERROR('HB comp controls'!D38," ") -> 19.88203434 | D38: =IFERROR('HB comp controls'!E38," ") -> 1.328820359 | E38: =IFERROR('HB comp controls'!F38," ") -> 4.159607829 | F38: =IFERROR('HB comp controls'!G38," ") -> 73.92761109 | G38: =IFERROR('HB comp controls'!H38," ") -> 81.99611568 | H38: =IFERROR('HB comp controls'!I38," ") ->  | I38: =IFERROR('HB comp controls'!J38," ") ->  | J38: =IFERROR('HB comp controls'!K38," ") ->  | K38: =IFERROR('HB comp controls'!L38," ") ->  | L38: =IFERROR('HB comp controls'!M38," ") -> 
A39: Hywel Dda | B39: =IFERROR('HB comp controls'!C39," ") -> 157.5 | C39: =IFERROR('HB comp controls'!D39," ") -> 22.10384686 | D39: =IFERROR('HB comp controls'!E39," ") -> 1.491075475 | E39: =IFERROR('HB comp controls'!F39," ") -> 4.321651313 | F39: =IFERROR('HB comp controls'!G39," ") -> 50.03886556 | G39: =IFERROR('HB comp controls'!H39," ") -> 98.44994733 | H39: =IFERROR('HB comp controls'!I39," ") ->  | I39: =IFERROR('HB comp controls'!J39," ") ->  | J39: =IFERROR('HB comp controls'!K39," ") ->  | K39: =IFERROR('HB comp controls'!L39," ") ->  | L39: =IFERROR('HB comp controls'!M39," ") -> 
A40: ABMU | B40: =IFERROR('HB comp controls'!C40," ") -> 150.8 | C40: =IFERROR('HB comp controls'!D40," ") -> 23.34378424 | D40: =IFERROR('HB comp controls'!E40," ") -> 2.279682921 | E40: =IFERROR('HB comp controls'!F40," ") -> 4.152378291 | F40: =IFERROR('HB comp controls'!G40," ") -> 50.95963195 | G40: =IFERROR('HB comp controls'!H40," ") -> 102.1008757 | H40: =IFERROR('HB comp controls'!I40," ") ->  | I40: =IFERROR('HB comp controls'!J40," ") ->  | J40: =IFERROR('HB comp controls'!K40," ") ->  | K40: =IFERROR('HB comp controls'!L40," ") ->  | L40: =IFERROR('HB comp controls'!M40," ") -> 
A41: Cardiff & Vale University | B41: =IFERROR('HB comp controls'!C41," ") -> 104.4 | C41: =IFERROR('HB comp controls'!D41," ") -> 21.22060724 | D41: =IFERROR('HB comp controls'!E41," ") -> 0.5642497167 | E41: =IFERROR('HB comp controls'!F41," ") -> 3.021570657 | F41: =IFERROR('HB comp controls'!G41," ") -> 30.56043129 | G41: =IFERROR('HB comp controls'!H41," ") -> 67.19275423 | H41: =IFERROR('HB comp controls'!I41," ") ->  | I41: =IFERROR('HB comp controls'!J41," ") ->  | J41: =IFERROR('HB comp controls'!K41," ") ->  | K41: =IFERROR('HB comp controls'!L41," ") ->  | L41: =IFERROR('HB comp controls'!M41," ") -> 
A42: Cwm Taf | B42: =IFERROR('HB comp controls'!C42," ") -> 154.6 | C42: =IFERROR('HB comp controls'!D42," ") -> 26.26803835 | D42: =IFERROR('HB comp controls'!E42," ") -> 1.122321546 | E42: =IFERROR('HB comp controls'!F42," ") -> 4.081043013 | F42: =IFERROR('HB comp controls'!G42," ") -> 39.92833376 | G42: =IFERROR('HB comp controls'!H42," ") -> 110.8710274 | H42: =IFERROR('HB comp controls'!I42," ") ->  | I42: =IFERROR('HB comp controls'!J42," ") ->  | J42: =IFERROR('HB comp controls'!K42," ") ->  | K42: =IFERROR('HB comp controls'!L42," ") ->  | L42: =IFERROR('HB comp controls'!M42," ") -> 
A43: Aneurin Bevan | B43: =IFERROR('HB comp controls'!C43," ") -> 135.1 | C43: =IFERROR('HB comp controls'!D43," ") -> 23.79908153 | D43: =IFERROR('HB comp controls'!E43," ") -> 1.074838869 | E43: =IFERROR('HB comp controls'!F43," ") -> 4.067050378 | F43: =IFERROR('HB comp controls'!G43," ") -> 40.01454442 | G43: =IFERROR('HB comp controls'!H43," ") -> 96.68875675 | H43: =IFERROR('HB comp controls'!I43," ") ->  | I43: =IFERROR('HB comp controls'!J43," ") ->  | J43: =IFERROR('HB comp controls'!K43," ") ->  | K43: =IFERROR('HB comp controls'!L43," ") ->  | L43: =IFERROR('HB comp controls'!M43," ") -> 
A44: Wales | B44: =IFERROR('HB comp controls'!C44," ") -> 148.1 | C44: =IFERROR('HB comp controls'!D44," ") -> 22.84960949 | D44: =IFERROR('HB comp controls'!E44," ") -> 1.260967164 | E44: =IFERROR('HB comp controls'!F44," ") -> 3.993046073 | F44: =IFERROR('HB comp controls'!G44," ") -> 48.88227947 | G44: =IFERROR('HB comp controls'!H44," ") -> 94.31441507 | H44: =IFERROR('HB comp controls'!I44," ") ->  | I44: =IFERROR('HB comp controls'!J44," ") ->  | J44: =IFERROR('HB comp controls'!K44," ") ->  | K44: =IFERROR('HB comp controls'!L44," ") ->  | L44: =IFERROR('HB comp controls'!M44," ") -> 
A45: England | B45: =IFERROR('HB comp controls'!C45," ") -> 131.4544022 | C45: =IFERROR('HB comp controls'!D45," ") -> n/a | D45: =IFERROR('HB comp controls'!E45," ") -> n/a | E45: =IFERROR('HB comp controls'!F45," ") -> 3.377799684 | F45: =IFERROR('HB comp controls'!G45," ") -> n/a | G45: =IFERROR('HB comp controls'!H45," ") -> 74.97589105 | H45: =IFERROR('HB comp controls'!I45," ") ->  | I45: =IFERROR('HB comp controls'!J45," ") ->  | J45: =IFERROR('HB comp controls'!K45," ") ->  | K45: =IFERROR('HB comp controls'!L45," ") ->  | L45: =IFERROR('HB comp controls'!M45," ") -> 
A47: ='HB comp controls'!B65 -> Source: (1) WHS (WG); (2) SSW, (3) PEDW (NWIS) & MYE (ONS), (4) StatsWales, England data from HSCIC; (5) ADDE (ONS) & MYE (ONS), England data from Mortality statistics & MYE (ONS)

Sheet HB comp controls (hidden)
B2: Measure | C2: Programme budget | D2: Expenditure
A3: Current selection (list number) | B3: 1 | C3: 1 | D3: 1 | E3: =IF(D3=1,2,3) -> 2
A4: Current selection | B4: =INDEX(H21:H30,B3,1) -> Smoking | C4: =INDEX(A11:C16,C3, 2) -> Circulatory | D4: =C4&" "&B4 -> Circulatory Smoking
C5: =INDEX(A11:C16,C3,1) -> Circulatory system
C6: =INDEX(A11:C16,C3,3) -> problems of the circulatory system
A9: Values for list boxes:
A10: Programme budget line:
A11: Circulatory system | B11: Circulatory | C11: problems of the circulatory system
A12: Respiratory system | B12: Respiratory | C12: problems of the respiratory system
A13: Cancers & tumours | B13: Cancers | C13: cancers & tumours
A14: Musculoskeletal (excl. Trauma) | B14: Musculoskeletal | C14: musculoskeletal (excl. trauma)
A15: Healthy Individuals | B15: Healthy Individuals | C15: healthy individuals
A16: Mental health disorders | B16: Mental health problems | C16: mental health disorders
A19: Measure:
A20: Circulatory | B20: Respiratory | C20: Cancers & tumours | D20: Musculoskeletal system problems (exc Trauma) | E20: Healthy Individuals | F20: Mental health disorders | H20: Measures chosen
A21: Smoking | B21: Smoking | C21: Smoking | D21: Overweight or obese | E21: Deprivation | F21: Benefit claimants | H21: =IF(INDEX(A21:F29,,$C$3)=0,"",INDEX('HB comp controls'!A21:F29,,'HB comp controls'!$C$3)) -> Smoking
A22: Smoking cessation | B22: Smoking cessation | C22: Healthy eating | D22: Physical activity | E22: Childhood vaccinations | F22: QOF register | H22: =IF(INDEX(A22:F30,,$C$3)=0,"",INDEX('HB comp controls'!A22:F30,,'HB comp controls'!$C$3)) -> Smoking cessation
A23: QOF register | B23: QOF register | C23: HPV vaccination | D23: Currently being treated | E23: Flu vaccination, 65+ | F23: Dementia | H23: =IF(INDEX(A23:F31,,$C$3)=0,"",INDEX('HB comp controls'!A23:F31,,'HB comp controls'!$C$3)) -> QOF register
A24: Elective admissions | B24: Flu immunisation | C24: Incidence | D24: Hip replacements | E24: Flu vaccination, at risk | F24: Care & treatment plan | H24: =IF(INDEX(A24:F32,,$C$3)=0,"",INDEX('HB comp controls'!A24:F32,,'HB comp controls'!$C$3)) -> Elective admissions
A25: Mortality | B25: Emergency admissions | C25: Treatment | D25: Knee replacements | E25: General health | F25: Emergency admissions | H25: =IF(INDEX(A25:F33,,$C$3)=0,"",INDEX('HB comp controls'!A25:F33,,'HB comp controls'!$C$3)) -> Mortality
B26: Mortality | C26: Survival | D26: Hip revisions | E26: Bowel screening | F26: No mental health problems | H26: =IF(INDEX(A26:F34,,$C$3)=0,"",INDEX('HB comp controls'!A26:F34,,'HB comp controls'!$C$3)) -> 
B27: Currently being treated | C27: Mortality | D27: Knee revisions | E27: HLE males | F27: Currently being treated | H27: =IF(INDEX(A27:F34,,$C$3)=0,"",INDEX('HB comp controls'!A27:F34,,'HB comp controls'!$C$3)) -> 
E28: HLE females | H28: =IF(INDEX(A28:F34,,$C$3)=0,"",INDEX('HB comp controls'!A28:F34,,'HB comp controls'!$C$3)) -> 
E29: DFLE males | H29: =IF(INDEX(A29:F34,,$C$3)=0,"",INDEX('HB comp controls'!A29:F34,,'HB comp controls'!$C$3)) -> 
E30: DFLE females | H30: =IF(INDEX(A30:F34,,$C$3)=0,"",INDEX('HB comp controls'!A30:F34,,'HB comp controls'!$C$3)) -> 
A31: Expenditure:
A32: Crude
A33: Age-adjusted
A36: Health Board table | C36: Expenditure | D36: 4 | E36: 5 | F36: 6 | G36: 7 | H36: 8 | I36: 9 | J36: 10 | K36: 11 | L36: 12 | M36: 13
A37: Betsi Cadwaladr University | B37: =A37 & "_" & $C$4 -> Betsi Cadwaladr University_Circulatory | C37: =VLOOKUP($B37,'Table data'!$A$3:$M$56,$E$3,FALSE) -> 172.2 | D37: =IF(VLOOKUP($B37,'Table data'!$A$3:$M$56,4,FALSE)>0,VLOOKUP($B37,'Table data'!$A$3:$M$56,4,FALSE),"") -> 22.36430543 | E37: =IF(VLOOKUP($B37,'Table data'!$A$3:$M$56,5,FALSE)>0,VLOOKUP($B37,'Table data'!$A$3:$M$56,5,FALSE),"") -> 1.05682304 | F37: =IF(VLOOKUP($B37,'Table data'!$A$3:$M$56,6,FALSE)>0,VLOOKUP($B37,'Table data'!$A$3:$M$56,6,FALSE),"") -> 4.242464546 | G37: =IF(VLOOKUP($B37,'Table data'!$A$3:$M$56,7,FALSE)>0,VLOOKUP($B37,'Table data'!$A$3:$M$56,7,FALSE),"") -> 64.20895011 | H37: =IF(VLOOKUP($B37,'Table data'!$A$3:$M$56,8,FALSE)>0,VLOOKUP($B37,'Table data'!$A$3:$M$56,8,FALSE),"") -> 98.2097866 | I37: =IF(VLOOKUP($B37,'Table data'!$A$3:$M$56,9,FALSE)>0,VLOOKUP($B37,'Table data'!$A$3:$M$56,9,FALSE),"") ->  | J37: =IF(VLOOKUP($B37,'Table data'!$A$3:$M$56,10,FALSE)>0,VLOOKUP($B37,'Table data'!$A$3:$M$56,10,FALSE),"") ->  | K37: =IF(VLOOKUP($B37,'Table data'!$A$3:$M$56,11,FALSE)>0,VLOOKUP($B37,'Table data'!$A$3:$M$56,11,FALSE),"") ->  | L37: =IF(VLOOKUP($B37,'Table data'!$A$3:$M$56,12,FALSE)>0,VLOOKUP($B37,'Table data'!$A$3:$M$56,12,FALSE),"") ->  | M37: =IF(VLOOKUP($B37,'Table data'!$A$3:$M$56,13,FALSE)>0,VLOOKUP($B37,'Table data'!$A$3:$M$56,13,FALSE),"") -> 
A38: Powys Teaching | B38: =A38 & "_" & $C$4 -> Powys Teaching_Circulatory | C38: =VLOOKUP($B38,'Table data'!$A$3:$M$56,$E$3,FALSE) -> 183.4 | D38: =IF(VLOOKUP($B38,'Table data'!$A$3:$M$56,4,FALSE)>0,VLOOKUP($B38,'Table data'!$A$3:$M$56,4,FALSE),"") -> 19.88203434 | E38: =IF(VLOOKUP($B38,'Table data'!$A$3:$M$56,5,FALSE)>0,VLOOKUP($B38,'Table data'!$A$3:$M$56,5,FALSE),"") -> 1.328820359 | F38: =IF(VLOOKUP($B38,'Table data'!$A$3:$M$56,6,FALSE)>0,VLOOKUP($B38,'Table data'!$A$3:$M$56,6,FALSE),"") -> 4.159607829 | G38: =IF(VLOOKUP($B38,'Table data'!$A$3:$M$56,7,FALSE)>0,VLOOKUP($B38,'Table data'!$A$3:$M$56,7,FALSE),"") -> 73.92761109 | H38: =IF(VLOOKUP($B38,'Table data'!$A$3:$M$56,8,FALSE)>0,VLOOKUP($B38,'Table data'!$A$3:$M$56,8,FALSE),"") -> 81.99611568 | I38: =IF(VLOOKUP($B38,'Table data'!$A$3:$M$56,9,FALSE)>0,VLOOKUP($B38,'Table data'!$A$3:$M$56,9,FALSE),"") ->  | J38: =IF(VLOOKUP($B38,'Table data'!$A$3:$M$56,10,FALSE)>0,VLOOKUP($B38,'Table data'!$A$3:$M$56,10,FALSE),"") ->  | K38: =IF(VLOOKUP($B38,'Table data'!$A$3:$M$56,11,FALSE)>0,VLOOKUP($B38,'Table data'!$A$3:$M$56,11,FALSE),"") ->  | L38: =IF(VLOOKUP($B38,'Table data'!$A$3:$M$56,12,FALSE)>0,VLOOKUP($B38,'Table data'!$A$3:$M$56,12,FALSE),"") ->  | M38: =IF(VLOOKUP($B38,'Table data'!$A$3:$M$56,13,FALSE)>0,VLOOKUP($B38,'Table data'!$A$3:$M$56,13,FALSE),"") -> 
A39: Hywel Dda | B39: =A39 & "_" & $C$4 -> Hywel Dda_Circulatory | C39: =VLOOKUP($B39,'Table data'!$A$3:$M$56,$E$3,FALSE) -> 157.5 | D39: =IF(VLOOKUP($B39,'Table data'!$A$3:$M$56,4,FALSE)>0,VLOOKUP($B39,'Table data'!$A$3:$M$56,4,FALSE),"") -> 22.10384686 | E39: =IF(VLOOKUP($B39,'Table data'!$A$3:$M$56,5,FALSE)>0,VLOOKUP($B39,'Table data'!$A$3:$M$56,5,FALSE),"") -> 1.491075475 | F39: =IF(VLOOKUP($B39,'Table data'!$A$3:$M$56,6,FALSE)>0,VLOOKUP($B39,'Table data'!$A$3:$M$56,6,FALSE),"") -> 4.321651313 | G39: =IF(VLOOKUP($B39,'Table data'!$A$3:$M$56,7,FALSE)>0,VLOOKUP($B39,'Table data'!$A$3:$M$56,7,FALSE),"") -> 50.03886556 | H39: =IF(VLOOKUP($B39,'Table data'!$A$3:$M$56,8,FALSE)>0,VLOOKUP($B39,'Table data'!$A$3:$M$56,8,FALSE),"") -> 98.44994733 | I39: =IF(VLOOKUP($B39,'Table data'!$A$3:$M$56,9,FALSE)>0,VLOOKUP($B39,'Table data'!$A$3:$M$56,9,FALSE),"") ->  | J39: =IF(VLOOKUP($B39,'Table data'!$A$3:$M$56,10,FALSE)>0,VLOOKUP($B39,'Table data'!$A$3:$M$56,10,FALSE),"") ->  | K39: =IF(VLOOKUP($B39,'Table data'!$A$3:$M$56,11,FALSE)>0,VLOOKUP($B39,'Table data'!$A$3:$M$56,11,FALSE),"") ->  | L39: =IF(VLOOKUP($B39,'Table data'!$A$3:$M$56,12,FALSE)>0,VLOOKUP($B39,'Table data'!$A$3:$M$56,12,FALSE),"") ->  | M39: =IF(VLOOKUP($B39,'Table data'!$A$3:$M$56,13,FALSE)>0,VLOOKUP($B39,'Table data'!$A$3:$M$56,13,FALSE),"") -> 
A40: Abertawe Bro Morgannwg University | B40: Abertawe Bro Morgannwg University_Circulatory | C40: =VLOOKUP($B40,'Table data'!$A$3:$M$56,$E$3,FALSE) -> 150.8 | D40: =IF(VLOOKUP($B40,'Table data'!$A$3:$M$56,4,FALSE)>0,VLOOKUP($B40,'Table data'!$A$3:$M$56,4,FALSE),"") -> 23.34378424 | E40: =IF(VLOOKUP($B40,'Table data'!$A$3:$M$56,5,FALSE)>0,VLOOKUP($B40,'Table data'!$A$3:$M$56,5,FALSE),"") -> 2.279682921 | F40: =IF(VLOOKUP($B40,'Table data'!$A$3:$M$56,6,FALSE)>0,VLOOKUP($B40,'Table data'!$A$3:$M$56,6,FALSE),"") -> 4.152378291 | G40: =IF(VLOOKUP($B40,'Table data'!$A$3:$M$56,7,FALSE)>0,VLOOKUP($B40,'Table data'!$A$3:$M$56,7,FALSE),"") -> 50.95963195 | H40: =IF(VLOOKUP($B40,'Table data'!$A$3:$M$56,8,FALSE)>0,VLOOKUP($B40,'Table data'!$A$3:$M$56,8,FALSE),"") -> 102.1008757 | I40: =IF(VLOOKUP($B40,'Table data'!$A$3:$M$56,9,FALSE)>0,VLOOKUP($B40,'Table data'!$A$3:$M$56,9,FALSE),"") ->  | J40: =IF(VLOOKUP($B40,'Table data'!$A$3:$M$56,10,FALSE)>0,VLOOKUP($B40,'Table data'!$A$3:$M$56,10,FALSE),"") ->  | K40: =IF(VLOOKUP($B40,'Table data'!$A$3:$M$56,11,FALSE)>0,VLOOKUP($B40,'Table data'!$A$3:$M$56,11,FALSE),"") ->  | L40: =IF(VLOOKUP($B40,'Table data'!$A$3:$M$56,12,FALSE)>0,VLOOKUP($B40,'Table data'!$A$3:$M$56,12,FALSE),"") ->  | M40: =IF(VLOOKUP($B40,'Table data'!$A$3:$M$56,13,FALSE)>0,VLOOKUP($B40,'Table data'!$A$3:$M$56,13,FALSE),"") -> 
A41: Cardiff and Vale University | B41: Cardiff and Vale University_Circulatory | C41: =VLOOKUP($B41,'Table data'!$A$3:$M$56,$E$3,FALSE) -> 104.4 | D41: =IF(VLOOKUP($B41,'Table data'!$A$3:$M$56,4,FALSE)>0,VLOOKUP($B41,'Table data'!$A$3:$M$56,4,FALSE),"") -> 21.22060724 | E41: =IF(VLOOKUP($B41,'Table data'!$A$3:$M$56,5,FALSE)>0,VLOOKUP($B41,'Table data'!$A$3:$M$56,5,FALSE),"") -> 0.5642497167 | F41: =IF(VLOOKUP($B41,'Table data'!$A$3:$M$56,6,FALSE)>0,VLOOKUP($B41,'Table data'!$A$3:$M$56,6,FALSE),"") -> 3.021570657 | G41: =IF(VLOOKUP($B41,'Table data'!$A$3:$M$56,7,FALSE)>0,VLOOKUP($B41,'Table data'!$A$3:$M$56,7,FALSE),"") -> 30.56043129 | H41: =IF(VLOOKUP($B41,'Table data'!$A$3:$M$56,8,FALSE)>0,VLOOKUP($B41,'Table data'!$A$3:$M$56,8,FALSE),"") -> 67.19275423 | I41: =IF(VLOOKUP($B41,'Table data'!$A$3:$M$56,9,FALSE)>0,VLOOKUP($B41,'Table data'!$A$3:$M$56,9,FALSE),"") ->  | J41: =IF(VLOOKUP($B41,'Table data'!$A$3:$M$56,10,FALSE)>0,VLOOKUP($B41,'Table data'!$A$3:$M$56,10,FALSE),"") ->  | K41: =IF(VLOOKUP($B41,'Table data'!$A$3:$M$56,11,FALSE)>0,VLOOKUP($B41,'Table data'!$A$3:$M$56,11,FALSE),"") ->  | L41: =IF(VLOOKUP($B41,'Table data'!$A$3:$M$56,12,FALSE)>0,VLOOKUP($B41,'Table data'!$A$3:$M$56,12,FALSE),"") ->  | M41: =IF(VLOOKUP($B41,'Table data'!$A$3:$M$56,13,FALSE)>0,VLOOKUP($B41,'Table data'!$A$3:$M$56,13,FALSE),"") -> 
A42: Cwm Taf | B42: Cwm Taf_Circulatory | C42: =VLOOKUP($B42,'Table data'!$A$3:$M$56,$E$3,FALSE) -> 154.6 | D42: =IF(VLOOKUP($B42,'Table data'!$A$3:$M$56,4,FALSE)>0,VLOOKUP($B42,'Table data'!$A$3:$M$56,4,FALSE),"") -> 26.26803835 | E42: =IF(VLOOKUP($B42,'Table data'!$A$3:$M$56,5,FALSE)>0,VLOOKUP($B42,'Table data'!$A$3:$M$56,5,FALSE),"") -> 1.122321546 | F42: =IF(VLOOKUP($B42,'Table data'!$A$3:$M$56,6,FALSE)>0,VLOOKUP($B42,'Table data'!$A$3:$M$56,6,FALSE),"") -> 4.081043013 | G42: =IF(VLOOKUP($B42,'Table data'!$A$3:$M$56,7,FALSE)>0,VLOOKUP($B42,'Table data'!$A$3:$M$56,7,FALSE),"") -> 39.92833376 | H42: =IF(VLOOKUP($B42,'Table data'!$A$3:$M$56,8,FALSE)>0,VLOOKUP($B42,'Table data'!$A$3:$M$56,8,FALSE),"") -> 110.8710274 | I42: =IF(VLOOKUP($B42,'Table data'!$A$3:$M$56,9,FALSE)>0,VLOOKUP($B42,'Table data'!$A$3:$M$56,9,FALSE),"") ->  | J42: =IF(VLOOKUP($B42,'Table data'!$A$3:$M$56,10,FALSE)>0,VLOOKUP($B42,'Table data'!$A$3:$M$56,10,FALSE),"") ->  | K42: =IF(VLOOKUP($B42,'Table data'!$A$3:$M$56,11,FALSE)>0,VLOOKUP($B42,'Table data'!$A$3:$M$56,11,FALSE),"") ->  | L42: =IF(VLOOKUP($B42,'Table data'!$A$3:$M$56,12,FALSE)>0,VLOOKUP($B42,'Table data'!$A$3:$M$56,12,FALSE),"") ->  | M42: =IF(VLOOKUP($B42,'Table data'!$A$3:$M$56,13,FALSE)>0,VLOOKUP($B42,'Table data'!$A$3:$M$56,13,FALSE),"") -> 
A43: Aneurin Bevan | B43: Aneurin Bevan_Circulatory | C43: =VLOOKUP($B43,'Table data'!$A$3:$M$56,$E$3,FALSE) -> 135.1 | D43: =IF(VLOOKUP($B43,'Table data'!$A$3:$M$56,4,FALSE)>0,VLOOKUP($B43,'Table data'!$A$3:$M$56,4,FALSE),"") -> 23.79908153 | E43: =IF(VLOOKUP($B43,'Table data'!$A$3:$M$56,5,FALSE)>0,VLOOKUP($B43,'Table data'!$A$3:$M$56,5,FALSE),"") -> 1.074838869 | F43: =IF(VLOOKUP($B43,'Table data'!$A$3:$M$56,6,FALSE)>0,VLOOKUP($B43,'Table data'!$A$3:$M$56,6,FALSE),"") -> 4.067050378 | G43: =IF(VLOOKUP($B43,'Table data'!$A$3:$M$56,7,FALSE)>0,VLOOKUP($B43,'Table data'!$A$3:$M$56,7,FALSE),"") -> 40.01454442 | H43: =IF(VLOOKUP($B43,'Table data'!$A$3:$M$56,8,FALSE)>0,VLOOKUP($B43,'Table data'!$A$3:$M$56,8,FALSE),"") -> 96.68875675 | I43: =IF(VLOOKUP($B43,'Table data'!$A$3:$M$56,9,FALSE)>0,VLOOKUP($B43,'Table data'!$A$3:$M$56,9,FALSE),"") ->  | J43: =IF(VLOOKUP($B43,'Table data'!$A$3:$M$56,10,FALSE)>0,VLOOKUP($B43,'Table data'!$A$3:$M$56,10,FALSE),"") ->  | K43: =IF(VLOOKUP($B43,'Table data'!$A$3:$M$56,11,FALSE)>0,VLOOKUP($B43,'Table data'!$A$3:$M$56,11,FALSE),"") ->  | L43: =IF(VLOOKUP($B43,'Table data'!$A$3:$M$56,12,FALSE)>0,VLOOKUP($B43,'Table data'!$A$3:$M$56,12,FALSE),"") ->  | M43: =IF(VLOOKUP($B43,'Table data'!$A$3:$M$56,13,FALSE)>0,VLOOKUP($B43,'Table data'!$A$3:$M$56,13,FALSE),"") -> 
A44: Wales | B44: Wales_Circulatory | C44: =VLOOKUP($B44,'Table data'!$A$3:$M$56,$E$3,FALSE) -> 148.1 | D44: =IF(VLOOKUP($B44,'Table data'!$A$3:$M$56,4,FALSE)>0,VLOOKUP($B44,'Table data'!$A$3:$M$56,4,FALSE),"") -> 22.84960949 | E44: =IF(VLOOKUP($B44,'Table data'!$A$3:$M$56,5,FALSE)>0,VLOOKUP($B44,'Table data'!$A$3:$M$56,5,FALSE),"") -> 1.260967164 | F44: =IF(VLOOKUP($B44,'Table data'!$A$3:$M$56,6,FALSE)>0,VLOOKUP($B44,'Table data'!$A$3:$M$56,6,FALSE),"") -> 3.993046073 | G44: =IF(VLOOKUP($B44,'Table data'!$A$3:$M$56,7,FALSE)>0,VLOOKUP($B44,'Table data'!$A$3:$M$56,7,FALSE),"") -> 48.88227947 | H44: =IF(VLOOKUP($B44,'Table data'!$A$3:$M$56,8,FALSE)>0,VLOOKUP($B44,'Table data'!$A$3:$M$56,8,FALSE),"") -> 94.31441507 | I44: =IF(VLOOKUP($B44,'Table data'!$A$3:$M$56,9,FALSE)>0,VLOOKUP($B44,'Table data'!$A$3:$M$56,9,FALSE),"") ->  | J44: =IF(VLOOKUP($B44,'Table data'!$A$3:$M$56,10,FALSE)>0,VLOOKUP($B44,'Table data'!$A$3:$M$56,10,FALSE),"") ->  | K44: =IF(VLOOKUP($B44,'Table data'!$A$3:$M$56,11,FALSE)>0,VLOOKUP($B44,'Table data'!$A$3:$M$56,11,FALSE),"") ->  | L44: =IF(VLOOKUP($B44,'Table data'!$A$3:$M$56,12,FALSE)>0,VLOOKUP($B44,'Table data'!$A$3:$M$56,12,FALSE),"") ->  | M44: =IF(VLOOKUP($B44,'Table data'!$A$3:$M$56,13,FALSE)>0,VLOOKUP($B44,'Table data'!$A$3:$M$56,13,FALSE),"") -> 
A45: England | B45: England_Circulatory | C45: =VLOOKUP($B45,'Table data'!$A$3:$M$56,$E$3,FALSE) -> 131.4544022 | D45: =IF(VLOOKUP($B45,'Table data'!$A$3:$M$56,4,FALSE)>0,VLOOKUP($B45,'Table data'!$A$3:$M$56,4,FALSE),"") -> n/a | E45: =IF(VLOOKUP($B45,'Table data'!$A$3:$M$56,5,FALSE)>0,VLOOKUP($B45,'Table data'!$A$3:$M$56,5,FALSE),"") -> n/a | F45: =IF(VLOOKUP($B45,'Table data'!$A$3:$M$56,6,FALSE)>0,VLOOKUP($B45,'Table data'!$A$3:$M$56,6,FALSE),"") -> 3.377799684 | G45: =IF(VLOOKUP($B45,'Table data'!$A$3:$M$56,7,FALSE)>0,VLOOKUP($B45,'Table data'!$A$3:$M$56,7,FALSE),"") -> n/a | H45: =IF(VLOOKUP($B45,'Table data'!$A$3:$M$56,8,FALSE)>0,VLOOKUP($B45,'Table data'!$A$3:$M$56,8,FALSE),"") -> 74.97589105 | I45: =IF(VLOOKUP($B45,'Table data'!$A$3:$M$56,9,FALSE)>0,VLOOKUP($B45,'Table data'!$A$3:$M$56,9,FALSE),"") ->  | J45: =IF(VLOOKUP($B45,'Table data'!$A$3:$M$56,10,FALSE)>0,VLOOKUP($B45,'Table data'!$A$3:$M$56,10,FALSE),"") ->  | K45: =IF(VLOOKUP($B45,'Table data'!$A$3:$M$56,11,FALSE)>0,VLOOKUP($B45,'Table data'!$A$3:$M$56,11,FALSE),"") ->  | L45: =IF(VLOOKUP($B45,'Table data'!$A$3:$M$56,12,FALSE)>0,VLOOKUP($B45,'Table data'!$A$3:$M$56,12,FALSE),"") ->  | M45: =IF(VLOOKUP($B45,'Table data'!$A$3:$M$56,13,FALSE)>0,VLOOKUP($B45,'Table data'!$A$3:$M$56,13,FALSE),"") -> 
A49: Health Board chart | D49: Exp per head | E49: Measure
A50: Betsi Cadwaladr University | B50: =$B$4 -> Smoking | C50: =A50 & "_" & $C$4 & "_" & $B$50 -> Betsi Cadwaladr University_Circulatory_Smoking | D50: =VLOOKUP(C50,'Chart data'!$A$3:$D$387,$E$3,FALSE) -> 172.2 | E50: =VLOOKUP(C50,'Chart data'!$A$3:$D$387,4,FALSE) -> 22.36430543
A51: Powys Teaching | B51: =$B$4 -> Smoking | C51: =A51 & "_" & $C$4 & "_" & $B$50 -> Powys Teaching_Circulatory_Smoking | D51: =VLOOKUP(C51,'Chart data'!$A$3:$D$387,$E$3,FALSE) -> 183.4 | E51: =VLOOKUP(C51,'Chart data'!$A$3:$D$387,4,FALSE) -> 19.88203434
A52: Hywel Dda | B52: Smoking | C52: Hywel Dda_Circulatory_Smoking | D52: =VLOOKUP(C52,'Chart data'!$A$3:$D$387,$E$3,FALSE) -> 157.5 | E52: =VLOOKUP(C52,'Chart data'!$A$3:$D$387,4,FALSE) -> 22.10384686
A53: Abertawe Bro Morgannwg University | B53: Smoking | C53: Abertawe Bro Morgannwg University_Circulatory_Smoking | D53: =VLOOKUP(C53,'Chart data'!$A$3:$D$387,$E$3,FALSE) -> 150.8 | E53: =VLOOKUP(C53,'Chart data'!$A$3:$D$387,4,FALSE) -> 23.34378424
A54: Cardiff and Vale University | B54: Smoking | C54: Cardiff and Vale University_Circulatory_Smoking | D54: =VLOOKUP(C54,'Chart data'!$A$3:$D$387,$E$3,FALSE) -> 104.4 | E54: =VLOOKUP(C54,'Chart data'!$A$3:$D$387,4,FALSE) -> 21.22060724
A55: Cwm Taf | B55: Smoking | C55: Cwm Taf_Circulatory_Smoking | D55: =VLOOKUP(C55,'Chart data'!$A$3:$D$387,$E$3,FALSE) -> 154.6 | E55: =VLOOKUP(C55,'Chart data'!$A$3:$D$387,4,FALSE) -> 26.26803835
A56: Aneurin Bevan | B56: Smoking | C56: Aneurin Bevan_Circulatory_Smoking | D56: =VLOOKUP(C56,'Chart data'!$A$3:$D$387,$E$3,FALSE) -> 135.1 | E56: =VLOOKUP(C56,'Chart data'!$A$3:$D$387,4,FALSE) -> 23.79908153
A57: Wales | B57: Smoking | C57: Wales_Circulatory_Smoking | D57: =VLOOKUP(C57,'Chart data'!$A$3:$D$387,$E$3,FALSE) -> 148.1 | E57: =VLOOKUP(C57,'Chart data'!$A$3:$D$387,4,FALSE) -> 22.84960949
A58: England | B58: Smoking | C58: England_Circulatory_Smoking | D58: =VLOOKUP(C58,'Chart data'!$A$3:$D$387,$E$3,FALSE) -> 131.4544022 | E58: =VLOOKUP(C58,'Chart data'!$A$3:$D$387,4,FALSE) -> -10
A61: Check if there are data for this indicator | B61: =ISNUMBER(D57) -> TRUE
A62: Chart title | B62: =IF($B$61=TRUE,(IF($D$3=1,"Expenditure per capita for "&$C$6&" against "&$I$88&"*, "&$J$101&", Wales health boards & England** ", "Age-adjusted expenditure per capita for "&$C$6&" against "&$I$88&", "&$J$101&", Wales health boards & England* ")),"Please select another measure") -> Expenditure per capita for problems of the circulatory system against current smoker status*, observed percentage, adults, 2010-11, Wales health boards & England**
A63: Table title | B63: =IF($D$3=1,"Expenditure per capita for "&C6&" with selected indicators, Wales health boards & England ", "Age-adjusted expenditure per capita for "&C6&" with selected indicators, Wales health boards & England ") -> Expenditure per capita for problems of the circulatory system with selected indicators, Wales health boards & England
A64: Produced by statement | B64: ="Produced by Public Health Wales Observatory, using "&I115 -> Produced by Public Health Wales Observatory, using WHS (WG)
A65: Source | B65: ="Source: "&H131 -> Source: (1) WHS (WG); (2) SSW, (3) PEDW (NWIS) & MYE (ONS), (4) StatsWales, England data from HSCIC; (5) ADDE (ONS) & MYE (ONS), England data from Mortality statistics & MYE (ONS)
A66: x-axis | B66: =INDEX(H101:H110,B3) -> Observed percentage, adults, 2010-11
A67: y-axis | B67: =IF($D$3=1,"Expenditure per capita (£), 2011/12","Age-adjusted expenditure per capita (£), 2011/12") -> Expenditure per capita (£), 2011/12
A68: x-axis Wales label | B68: ="Wales = "&ROUND(E57,1) -> Wales = 22.8
A69: y-axis Wales label | B69: ="Wales = "&ROUND(D57,0) -> Wales = 148
A72: Measure for table
A73: Circulatory | B73: Respiratory | C73: Cancers & tumours | D73: Musculoskeletal (excl. Trauma) | E73: Healthy Individuals | F73: Mental health disorders
A74: Current smoker status, adults | B74: Current smoker status, adults | C74: Current smoker status, adults | D74: % of adults who are overweight or obese | E74: Percentage of population in most deprived fifth | F74: Out of work benefit claimants, % working age adults | H74: =IF(INDEX(A74:F83,,$C$3)=0,"",INDEX(A74:F83,,'HB comp controls'!$C$3)) -> Current smoker status, adults | L74: =IF(H74="","",H74&" (1)") -> Current smoker status, adults (1)
A75: % of smokers treated by Stop Smoking Wales | B75: % of smokers treated by Stop Smoking Wales | C75: Adults meeting healthy eating guidelines | D75: % of adults meeting physical activity guidelines | E75: Uptake of scheduled vaccinations at age 4 | F75: QOF mental health register, % of list size | H75: =IF(INDEX(A75:F84,,$C$3)=0,"",INDEX(A75:F84,,'HB comp controls'!$C$3)) -> % of smokers treated by Stop Smoking Wales | L75: =IF(H75="","",H75&" (2)") -> % of smokers treated by Stop Smoking Wales (2)
A76: QOF CHD register, % of list size | B76: QOF COPD register, % of list size | C76: HPV vaccination uptake | D76: % of adults currently being treated for arthritis | E76: Influenza vaccination uptake, aged 65+ | F76: People with Dementia, % on QOF register | H76: =IF(INDEX(A76:F84,,$C$3)=0,"",INDEX(A76:F84,,'HB comp controls'!$C$3)) -> QOF CHD register, % of list size | L76: =IF(H76="","",H76&" (3)") -> QOF CHD register, % of list size (3)
A77: Elective hospital admissions, any mention of revascularisation | B77: QOF COPD register: Patients having influenza immunisation | C77: Cancer incidence, all malignancies excl NMSC | D77: Elective hospital admissions per 100,000, hip replacement | E77: Influenza vaccination uptake, aged under 65 at risk | F77: In secondary care with care & treatment plan | H77: =IF(INDEX(A77:F84,,$C$3)=0,"",INDEX(A77:F84,,'HB comp controls'!$C$3)) -> Elective hospital admissions, any mention of revascularisation | L77: =IF(H77="","",H77&" (4)") -> Elective hospital admissions, any mention of revascularisation (4)
A78: Mortality from circulatory disease, under 75 | B78: Emergency hospital admissions, primary diagnosis bronchitis, emphysema or COPD | C78: % of new diagnoses via urgent suspected cancer route starting treatment within 62 days | D78: Elective hospital admissions per 100,000, knee replacement | E78: Adults reporting general health status as fair or poor | F78: Emergency hospital admissions, any mention of self harm | H78: =IF(INDEX(A78:F84,,$C$3)=0,"",INDEX(A78:F84,,'HB comp controls'!$C$3)) -> Mortality from circulatory disease, under 75 | L78: =IF(H78="","",H78&" (5)") -> Mortality from circulatory disease, under 75 (5)
B79: Mortality from bronchitis, emphysema and COPD, under 75 | C79: Survival rates, persons, all malignancies excl NMSC | D79: Elective hospital admissions per 100,000, hip replacement revision | E79: Bowel cancer screening | F79: % adults free from common mental health problems | H79: =IF(INDEX(A79:F99,,$C$3)=0,"",INDEX(A79:F99,,'HB comp controls'!$C$3)) ->  | L79: =IF(H79="","",H79&" (6)") -> 
B80: Adults being treated for any respiratory illness | C80: Mortality rates, persons, all malignancies excl NMSC | D80: Elective hospital admissions per 100,000, knee replacement revision | E80: Healthy life expectancy, males | F80: % adults currently being treated for any mental illness | H80: =IF(INDEX(A80:F100,,$C$3)=0,"",INDEX(A80:F100,,'HB comp controls'!$C$3)) ->  | L80: =IF(H80="","",H80&" (7)") -> 
E81: Healthy life expectancy, females | H81: =IF(INDEX(A81:F101,,$C$3)=0,"",INDEX(A81:F101,,'HB comp controls'!$C$3)) ->  | L81: =IF(H81="","",H81&" (8)") -> 
E82: Disability-free life expectancy, males | H82: =IF(INDEX(A82:F102,,$C$3)=0,"",INDEX(A82:F102,,'HB comp controls'!$C$3)) ->  | L82: =IF(H82="","",H82&" (9)") -> 
E83: Disability-free life expectancy, females | H83: =IF(INDEX(A83:F103,,$C$3)=0,"",INDEX(A83:F103,,'HB comp controls'!$C$3)) ->  | L83: =IF(H83="","",H83&" (10)") -> 
A86: Measure for chart heading
A87: Circulatory | B87: Respiratory | C87: Cancers & tumours | D87: Musculoskeletal (excl. Trauma) | E87: Healthy Individuals | F87: Mental health disorders
A88: current smoker status | B88: current smoker status | C88: current smoker status | D88: % of adults who are overweight or obese | E88: percentage of population in most deprived fifth | F88: out of work benefit claimants | H88: =IF(INDEX(A88:F97,,$C$3)=0,"",INDEX(A88:F97,,'HB comp controls'!$C$3)) -> current smoker status | I88: =INDEX(H88:H97,B3) -> current smoker status
A89: % of smokers treated by Stop Smoking Wales | B89: % of smokers treated by Stop Smoking Wales | C89: adults meeting healthy eating guidelines | D89: % of adults meeting physical activity guidelines | E89: uptake of scheduled vaccinations | F89: QOF mental health register | H89: =IF(INDEX(A89:F110,,$C$3)=0,"",INDEX(A89:F110,,'HB comp controls'!$C$3)) -> % of smokers treated by Stop Smoking Wales
A90: QOF CHD register | B90: QOF COPD register | C90: HPV vaccination uptake | D90: % of adults currently being treated for arthritis | E90: influenza vaccination uptake | F90: people with dementia | H90: =IF(INDEX(A90:F111,,$C$3)=0,"",INDEX(A90:F111,,'HB comp controls'!$C$3)) -> QOF CHD register
A91: elective hospital admissions, any mention of revascularisation | B91: QOF COPD register: Patients having influenza immunisation | C91: cancer incidence, all malignancies excl NMSC | D91: elective hospital admissions, hip replacement | E91: influenza vaccination uptake | F91: those in secondary care with care & treatment plan | H91: =IF(INDEX(A91:F112,,$C$3)=0,"",INDEX(A91:F112,,'HB comp controls'!$C$3)) -> elective hospital admissions, any mention of revascularisation
A92: mortality from circulatory disease | B92: emergency hospital admissions, primary diagnosis bronchitis, emphysema or COPD | C92: % of new diagnoses via urgent suspected cancer route starting treatment within 62 days | D92: elective hospital admissions, knee replacement | E92: adults reporting general health status as fair or poor | F92: emergency hospital admissions, any mention of self harm | H92: =IF(INDEX(A92:F113,,$C$3)=0,"",INDEX(A92:F113,,'HB comp controls'!$C$3)) -> mortality from circulatory disease
B93: mortality from bronchitis, emphysema and COPD | C93: survival rates, all malignancies excl NMSC | D93: elective hospital admissions, hip replacement revision | E93: bowel cancer screening | F93: % adults free from common mental health problems | H93: =IF(INDEX(A93:F114,,$C$3)=0,"",INDEX(A93:F114,,'HB comp controls'!$C$3)) -> 
B94: adults being treated for any respiratory illness | C94: mortality rates, all malignancies excl NMSC | D94: elective hospital admissions, knee replacement revision | E94: healthy life expectancy | F94: % adults currently being treated for any mental illness | H94: =IF(INDEX(A94:F115,,$C$3)=0,"",INDEX(A94:F115,,'HB comp controls'!$C$3)) -> 
E95: healthy life expectancy | H95: =IF(INDEX(A95:F116,,$C$3)=0,"",INDEX(A95:F116,,'HB comp controls'!$C$3)) -> 
E96: disability-free life expectancy | H96: =IF(INDEX(A96:F117,,$C$3)=0,"",INDEX(A96:F117,,'HB comp controls'!$C$3)) -> 
E97: disability-free life expectancy | H97: =IF(INDEX(A97:F118,,$C$3)=0,"",INDEX(A97:F118,,'HB comp controls'!$C$3)) -> 
A99: Chart axis | I99: Chart x-axis | J99: Chart title
A100: Circulatory | B100: Respiratory | C100: Cancers & tumours | D100: Musculoskeletal (excl. Trauma) | E100: Healthy Individuals | F100: Mental health disorders | H100: =IF($D$3=1,"Expenditure per capita (£)","Age-adjusted expenditure per capita (£)") -> Expenditure per capita (£)
A101: Observed percentage, adults, 2010-11 | B101: Observed percentage, adults, 2010-11 | C101: Observed percentage, adults, 2010-11 | D101: Observed percentage, adults, 2010-11 | E101: Percentage of population in most deprived fifth | F101: Percentage, residents aged 16-64, 2012 | H101: =IF(INDEX(A101:F110,,$C$3)=0,"",INDEX(A101:F110,,'HB comp controls'!$C$3)) -> Observed percentage, adults, 2010-11 | I101: =INDEX(H101:H110,B3) -> Observed percentage, adults, 2010-11 | J101: =LOWER(I101) -> observed percentage, adults, 2010-11
A102: Percentage, adults, 2011/12 | B102: Percentage, adults, 2011/12 | C102: Observed percentage, adults, 2010-11 | D102: Observed percentage, adults, 2010-11 | E102: Percentage, resident children aged 4, 2011-12 | F102: Percentage, registered population, 2011/12 | H102: =IF(INDEX(A102:F111,,$C$3)=0,"",INDEX(A102:F111,,'HB comp controls'!$C$3)) -> Percentage, adults, 2011/12
A103: Crude percentage, registered population, 2011-12 | B103: Crude percentage, registered population, 2011-12 | C103: Percentage, female residents aged 14, 2011-12 | D103: Observed percentage, adults, 2010-11 | E103: Percentage, registered population aged 65+, 2011-12 | F103: Percentage, registered population, 2012 | H103: =IF(INDEX(A103:F112,,$C$3)=0,"",INDEX(A103:F112,,'HB comp controls'!$C$3)) -> Crude percentage, registered population, 2011-12
A104: Crude rate per 100,000, all ages, 2009/11 | B104: Crude percentage, registered population, 2011-12 | C104: Crude rate per 100,000, all ages, 2005-09 | D104: Crude rate per 100,000, all ages, 2009/11 | E104: Percentage, registered population aged under 65, 2011-12 | F104: Crude rate per 100,000, all ages, as at May 2013 | H104: =IF(INDEX(A104:F113,,$C$3)=0,"",INDEX(A104:F113,,'HB comp controls'!$C$3)) -> Crude rate per 100,000, all ages, 2009/11
A105: Crude rate per 100,000, under 75, 2009/11 | B105: Crude rate per 100,000, all ages, 2009/11 | C105: Percentage, all ages, Q3 2009/10 - Q3 2012/13 | D105: Crude rate per 100,000, all ages, 2009/11 | E105: Observed percentage, adults, 2010-11 | F105: Crude rate per 100,000, all ages, 2009/11 | H105: =IF(INDEX(A105:F114,,$C$3)=0,"",INDEX(A105:F114,,'HB comp controls'!$C$3)) -> Crude rate per 100,000, under 75, 2009/11
B106: Crude rate per 100,000, under 75, 2009/11 | C106: Relative survival, adults, 2005-09 | D106: Crude rate per 100,000, all ages, 2009/11 | E106: Percentage, eligible residents aged 60-69, October 2008 - November 2010 | F106: Age-standardised percentage, adults, 2009-10 | H106: =IF(INDEX(A106:F115,,$C$3)=0,"",INDEX(A106:F115,,'HB comp controls'!$C$3)) -> 
B107: Observed percentage, adults, 2010-11 | C107: Crude rate per 100,000, all ages, 2005-09 | D107: Crude rate per 100,000, all ages, 2009/11 | E107: Years of healthy life expectancy, males, 2005-09 | F107: Observed percentage, adults, 2010-11 | H107: =IF(INDEX(A107:F116,,$C$3)=0,"",INDEX(A107:F116,,'HB comp controls'!$C$3)) -> 
E108: Years of healthy life expectancy, females, 2005-09 | H108: =IF(INDEX(A108:F117,,$C$3)=0,"",INDEX(A108:F117,,'HB comp controls'!$C$3)) -> 
E109: Years of disability-free life expectancy, males, 2005-09 | H109: =IF(INDEX(A109:F118,,$C$3)=0,"",INDEX(A109:F118,,'HB comp controls'!$C$3)) -> 
E110: Years of disability-free life expectancy, females, 2005-09 | H110: =IF(INDEX(A110:F119,,$C$3)=0,"",INDEX(A110:F119,,'HB comp controls'!$C$3)) -> 
A113: Measure source
A114: Circulatory | B114: Respiratory | C114: Cancers & tumours | D114: Musculoskeletal (excl. Trauma) | E114: Healthy Individuals | F114: Mental health disorders
A115: WHS (WG) | B115: WHS (WG) | C115: WHS (WG) | D115: WHS (WG) | E115: WIMD (WG) & MYE (ONS) | F115: WPSL (DWP) & MYE (ONS) | H115: =IF(INDEX(A115:F124,,$C$3)=0,"",INDEX(A115:F124,,'HB comp controls'!$C$3)) -> WHS (WG) | I115: =INDEX(H115:H124,B3) -> WHS (WG)
A116: SSW, MYE (ONS) & WHS (WG) | B116: SSW, MYE (ONS) & WHS (WG) | C116: WHS (WG) | D116: WHS (WG) | E116: CDSC & VPDP (PHW) | F116: StatsWales; England data from HSCIC | H116: =IF(INDEX(A116:F125,,$C$3)=0,"",INDEX(A116:F125,,'HB comp controls'!$C$3)) -> SSW, MYE (ONS) & WHS (WG)
A117: StatsWales; England data from HSCIC | B117: StatsWales; England data from HSCIC | C117: CDSC & VPDP (PHW) | D117: WHS (WG) | E117: CDSC & VPDP (PHW); England data from HPA (DH) | F117: Mapping the Dementia Gap (Alzheimer's society) | H117: =IF(INDEX(A117:F126,,$C$3)=0,"",INDEX(A117:F126,,'HB comp controls'!$C$3)) -> StatsWales; England data from HSCIC
A118: PEDW (NWIS) & MYE (ONS) | B118: StatsWales; England data from HSCIC | C118: Cancer registrations (WCISU) & MYE (ONS); England data from Cancer statistics registrations & MYE (ONS) | D118: PEDW (NWIS) & MYE (ONS) | E118: CDSC & VPDP (PHW); England data from HPA (DH) | F118: WG | H118: =IF(INDEX(A118:F127,,$C$3)=0,"",INDEX(A118:F127,,'HB comp controls'!$C$3)) -> PEDW (NWIS) & MYE (ONS)
A119: ADDE & MYE (ONS); England data from Mortality statistics & MYE (ONS) | B119: PEDW (NWIS) & MYE (ONS) | C119: StatsWales; England data from NHS England | D119: PEDW (NWIS) & MYE (ONS) | E119: WHS (WG) | F119: PEDW (NWIS) & MYE (ONS) | H119: =IF(INDEX(A119:F128,,$C$3)=0,"",INDEX(A119:F128,,'HB comp controls'!$C$3)) -> ADDE & MYE (ONS); England data from Mortality statistics & MYE (ONS)
B120: ADDE & MYE (ONS); England data from Mortality statistics & MYE (ONS) | C120: Cancer registrations (WCISU) | D120: PEDW (NWIS) & MYE (ONS) | E120: Bowel Screening Wales (PHW) | F120: WHS (WG) | H120: =IF(INDEX(A120:F129,,$C$3)=0,"",INDEX(A120:F129,,'HB comp controls'!$C$3)) -> 
B121: WHS (WG) | C121: Cancer registrations (WCISU) & MYE (ONS); England data from Mortality Statistics & MYE (ONS) | D121: PEDW (NWIS) & MYE (ONS) | E121: ADDE, MYE (ONS) & WHS (WG) | F121: WHS (WG) | H121: =IF(INDEX(A121:F130,,$C$3)=0,"",INDEX(A121:F130,,'HB comp controls'!$C$3)) -> 
E122: ADDE, MYE (ONS) & WHS (WG) | H122: =IF(INDEX(A122:F131,,$C$3)=0,"",INDEX(A122:F131,,'HB comp controls'!$C$3)) -> 
E123: ADDE, MYE (ONS) & WHS (WG) | H123: =IF(INDEX(A123:F132,,$C$3)=0,"",INDEX(A123:F132,,'HB comp controls'!$C$3)) -> 
E124: ADDE, MYE (ONS) & WHS (WG) | H124: =IF(INDEX(A124:F133,,$C$3)=0,"",INDEX(A124:F133,,'HB comp controls'!$C$3)) -> 
A126: All sources
A127: Circulatory | B127: Respiratory | C127: Cancers & tumours | D127: Musculoskeletal (excl. Trauma) | E127: Healthy Individuals | F127: Mental health disorders
A128: WHS (WG), SSW, PEDW (NWIS), StatsWales, ADDE (ONS) & MYE (ONS); England data from HSCIC, Mortality statistics & MYE (ONS) | B128: WHS (WG), SSW, PEDW (NWIS), StatsWales, ADDE (ONS) & MYE (ONS); England data from HSCIC, Mortality statistics & MYE (ONS) | C128: WHS (WG), CDSC & VPDP (PHW), Cancer registrations (WCISU), MYE (ONS), StatsWales; England data from NHS England, Mortality Statistics & MYE (ONS) | D128: WHS (WG), PEDW (NWIS) & MYE (ONS) | E128: WIMD (WG), MYE (ONS), CDSC & VPDP (PHW), ADDE (ONS), WHS (WG), Bowel Screening Wales (PHW); England data from HPA (DH) | F128: WPSL (DWP), StatsWales, Mapping the Gap (Alzheimer's society), WG, WHS (WG), PEDW (NWIS) & MYE (ONS); England data from Mapping the Gap (Alzheimer's society) & HSCIC | H128: =INDEX(A128:F128,C3) -> WHS (WG), SSW, PEDW (NWIS), StatsWales, ADDE (ONS) & MYE (ONS); England data from HSCIC, Mortality statistics & MYE (ONS)
A129: WHS (WG), SSW, PEDW (NWIS), StatsWales, ADDE (ONS) & MYE (ONS); England data from HSCIC, Mortality statistics & MYE (ONS) | B129: WHS (WG), SSW, PEDW (NWIS), StatsWales, ADDE (ONS) & MYE (ONS); England data from HSCIC, Mortality statistics & MYE (ONS) | C129: WHS (WG), CDSC & VPDP (PHW), Cancer registrations (WCISU), MYE (ONS), StatsWales; England data from NHS England, Mortality Statistics & MYE (ONS) | D129: WHS (WG), PEDW (NWIS) & MYE (ONS) | E129: WIMD (WG), MYE (ONS), CDSC & VPDP (PHW), ADDE (ONS), WHS (WG), Bowel Screening Wales (PHW); England data from HPA (DH) | F129: WPSL (DWP), StatsWales, Mapping the Gap (Alzheimer's society), WG, WHS (WG), PEDW (NWIS) & MYE (ONS); England data from Mapping the Gap (Alzheimer's society) & HSCIC
A131: (1) WHS (WG); (2) SSW, (3) PEDW (NWIS) & MYE (ONS), (4) StatsWales, England data from HSCIC; (5) ADDE (ONS) & MYE (ONS), England data from Mortality statistics & MYE (ONS) | B131: (1) WHS (WG), (2) SSW, (3) StatsWales, England data from HSCIC; (4) StatsWales, England data from HSCIC; (5) PEDW (NWIS) & MYE (ONS), (6) ADDE (ONS) & MYE (ONS), England data from Mortality statistics & MYE (ONS) | C131: (1) WHS (WG); (2) WHS (WG); (3) CDSC & VPDP (PHW); (4) Cancer registrations (WCISU), England data from Cancer statistics registrations & MYE (ONS); (5) StatsWales, England data from NHS England; Cancer registrations (WCISU); (7) Cancer registrations (WCISU) & MYE (ONS), England data from Mortality Statistics & MYE (ONS); | D131: (1) WHS (WG), (2) WHS (WG), (3) WHS (WG), (4) PEDW (NWIS) & MYE (ONS), (5) PEDW (NWIS) & MYE (ONS), (6) PEDW (NWIS) & MYE (ONS), (7) PEDW (NWIS) & MYE (ONS) | E131: (1) WIMD (WG) & MYE (ONS); (2) CDSC & VPDP (PHW); (3) CDSC & VPDP (PHW), England data from HPA (DH); (4) CDSC & VPDP (PHW), England data from HPA (DH); (5) WHS (WG); (6) Bowel Screening Wales (PHW); (7) ADDE (ONS), MYE (ONS) & WHS (WG); (8)ADDE (ONS), MYE (ONS) & WHS (WG); (9) ADDE (ONS), MYE (ONS) & WHS (WG); (10) ADDE (ONS), MYE (ONS) & WHS (WG) | F131: (1) WPSL (DWP) & MYE (ONS); (2) StatsWales, England data from HSCIC; (3) Mapping the Gap (Alzheimer's society), England data from Mapping the Gap (Alzheimer's society); (4) WG; (5) PEDW (NWIS) & MYE (ONS); (6) WHS (WG); (7) WHS (WG) | H131: =INDEX(A131:F131,C3) -> (1) WHS (WG); (2) SSW, (3) PEDW (NWIS) & MYE (ONS), (4) StatsWales, England data from HSCIC; (5) ADDE (ONS) & MYE (ONS), England data from Mortality statistics & MYE (ONS)

Sheet Chart data (hidden)
A2: HB_ProgrammeBudget_Measure | B2: crude | C2: adjusted | D2: Outcome
A3: Betsi Cadwaladr University_Circulatory_Smoking | B3: 172.2 | C3: 167.6968558 | D3: 22.36430543
A4: Powys Teaching_Circulatory_Smoking | B4: 183.4 | C4: 171.8963431 | D4: 19.88203434
A5: Hywel Dda_Circulatory_Smoking | B5: 157.5 | C5: 150.9460045 | D5: 22.10384686
A6: Abertawe Bro Morgannwg University_Circulatory_Smoking | B6: 150.8 | C6: 151.3814612 | D6: 23.34378424
A7: Cardiff and Vale University_Circulatory_Smoking | B7: 104.4 | C7: 110.1453807 | D7: 21.22060724
A8: Cwm Taf_Circulatory_Smoking | B8: 154.6 | C8: 158.5477251 | D8: 26.26803835
A9: Aneurin Bevan_Circulatory_Smoking | B9: 135.1 | C9: 137.4521444 | D9: 23.79908153
A10: Wales_Circulatory_Smoking | B10: 148.1 | C10: 148.1085415 | D10: 22.84960949
A11: Betsi Cadwaladr University_Circulatory_Smoking cessation | B11: 172.2 | C11: 167.6968558 | D11: 1.05682304
A12: Powys Teaching_Circulatory_Smoking cessation | B12: 183.4 | C12: 171.8963431 | D12: 1.328820359
A13: Hywel Dda_Circulatory_Smoking cessation | B13: 157.5 | C13: 150.9460045 | D13: 1.491075475
A14: Abertawe Bro Morgannwg University_Circulatory_Smoking cessation | B14: 150.8 | C14: 151.3814612 | D14: 2.279682921
A15: Cardiff and Vale University_Circulatory_Smoking cessation | B15: 104.4 | C15: 110.1453807 | D15: 0.5642497167
A16: Cwm Taf_Circulatory_Smoking cessation | B16: 154.6 | C16: 158.5477251 | D16: 1.122321546
A17: Aneurin Bevan_Circulatory_Smoking cessation | B17: 135.1 | C17: 137.4521444 | D17: 1.074838869
A18: Wales_Circulatory_Smoking cessation | B18: 148.1 | C18: 148.1085415 | D18: 1.260967164
A19: Betsi Cadwaladr University_Circulatory_QOF register | B19: 172.2 | C19: 167.6968558 | D19: 4.242464546
A20: Powys Teaching_Circulatory_QOF register | B20: 183.4 | C20: 171.8963431 | D20: 4.159607829
A21: Hywel Dda_Circulatory_QOF register | B21: 157.5 | C21: 150.9460045 | D21: 4.321651313
A22: Abertawe Bro Morgannwg University_Circulatory_QOF register | B22: 150.8 | C22: 151.3814612 | D22: 4.152378291
A23: Cardiff and Vale University_Circulatory_QOF register | B23: 104.4 | C23: 110.1453807 | D23: 3.021570657
A24: Cwm Taf_Circulatory_QOF register | B24: 154.6 | C24: 158.5477251 | D24: 4.081043013
A25: Aneurin Bevan_Circulatory_QOF register | B25: 135.1 | C25: 137.4521444 | D25: 4.067050378
A26: Wales_Circulatory_QOF register | B26: 148.1 | C26: 148.1085415 | D26: 3.993046073
A27: Abertawe Bro Morgannwg University_Circulatory_Elective admissions | B27: 150.8 | C27: 151.3814612 | D27: 50.95963195
A28: Aneurin Bevan_Circulatory_Elective admissions | B28: 135.1 | C28: 137.4521444 | D28: 40.01454442
A29: Betsi Cadwaladr University_Circulatory_Elective admissions | B29: 172.2 | C29: 167.6968558 | D29: 64.20895011
A30: Cardiff and Vale University_Circulatory_Elective admissions | B30: 104.4 | C30: 110.1453807 | D30: 30.56043129
A31: Cwm Taf_Circulatory_Elective admissions | B31: 154.6 | C31: 158.5477251 | D31: 39.92833376
A32: Hywel Dda_Circulatory_Elective admissions | B32: 157.5 | C32: 150.9460045 | D32: 50.03886556
A33: Powys Teaching_Circulatory_Elective admissions | B33: 183.4 | C33: 171.8963431 | D33: 73.92761109
A34: Wales_Circulatory_Elective admissions | B34: 148.1 | C34: 148.1085415 | D34: 48.88227947
A35: Abertawe Bro Morgannwg University_Circulatory_Mortality | B35: 150.8 | C35: 151.3814612 | D35: 102.1008757
A36: Aneurin Bevan_Circulatory_Mortality | B36: 135.1 | C36: 137.4521444 | D36: 96.68875675
A37: Betsi Cadwaladr University_Circulatory_Mortality | B37: 172.2 | C37: 167.6968558 | D37: 98.2097866
A38: Cardiff and Vale University_Circulatory_Mortality | B38: 104.4 | C38: 110.1453807 | D38: 67.19275423
A39: Cwm Taf_Circulatory_Mortality | B39: 154.6 | C39: 158.5477251 | D39: 110.8710274
A40: Hywel Dda_Circulatory_Mortality | B40: 157.5 | C40: 150.9460045 | D40: 98.44994733
A41: Powys Teaching_Circulatory_Mortality | B41: 183.4 | C41: 171.8963431 | D41: 81.99611568
A42: Wales_Circulatory_Mortality | B42: 148.1 | C42: 148.1085415 | D42: 94.31441507
A43: Betsi Cadwaladr University_Respiratory_Smoking | B43: 124.9 | C43: 121.633769 | D43: 22.36430543
A44: Powys Teaching_Respiratory_Smoking | B44: 117.3 | C44: 110.009151 | D44: 19.88203434
A45: Hywel Dda_Respiratory_Smoking | B45: 106.1 | C45: 101.7209342 | D45: 22.10384686
A46: Abertawe Bro Morgannwg University_Respiratory_Smoking | B46: 114.6 | C46: 115.093257 | D46: 23.34378424
A47: Cardiff and Vale University_Respiratory_Smoking | B47: 98.2 | C47: 103.5803798 | D47: 21.22060724
A48: Cwm Taf_Respiratory_Smoking | B48: 139.1 | C48: 142.6149674 | D48: 26.26803835
A49: Aneurin Bevan_Respiratory_Smoking | B49: 114.5 | C49: 116.4974501 | D49: 23.79908153
A50: Wales_Respiratory_Smoking | B50: 115.8 | C50: 115.7757774 | D50: 22.84960949
A51: Betsi Cadwaladr University_Respiratory_Smoking cessation | B51: 124.9 | C51: 121.633769 | D51: 1.05682304
A52: Powys Teaching_Respiratory_Smoking cessation | B52: 117.3 | C52: 110.009151 | D52: 1.328820359
A53: Hywel Dda_Respiratory_Smoking cessation | B53: 106.1 | C53: 101.7209342 | D53: 1.491075475
A54: Abertawe Bro Morgannwg University_Respiratory_Smoking cessation | B54: 114.6 | C54: 115.093257 | D54: 2.279682921
A55: Cardiff and Vale University_Respiratory_Smoking cessation | B55: 98.2 | C55: 103.5803798 | D55: 0.5642497167
A56: Cwm Taf_Respiratory_Smoking cessation | B56: 139.1 | C56: 142.6149674 | D56: 1.122321546
A57: Aneurin Bevan_Respiratory_Smoking cessation | B57: 114.5 | C57: 116.4974501 | D57: 1.074838869
A58: Wales_Respiratory_Smoking cessation | B58: 115.8 | C58: 115.7757774 | D58: 1.260967164
A59: Betsi Cadwaladr University_Respiratory_QOF register | B59: 124.9 | C59: 121.633769 | D59: 2.407892931
A60: Powys Teaching_Respiratory_QOF register | B60: 117.3 | C60: 110.009151 | D60: 2.107919115
A61: Hywel Dda_Respiratory_QOF register | B61: 106.1 | C61: 101.7209342 | D61: 2.028982553
A62: Abertawe Bro Morgannwg University_Respiratory_QOF register | B62: 114.6 | C62: 115.093257 | D62: 2.074442363
A63: Cardiff and Vale University_Respiratory_QOF register | B63: 98.2 | C63: 103.5803798 | D63: 1.453431441
A64: Cwm Taf_Respiratory_QOF register | B64: 139.1 | C64: 142.6149674 | D64: 2.647588967
A65: Aneurin Bevan_Respiratory_QOF register | B65: 114.5 | C65: 116.4974501 | D65: 2.075448378
A66: Wales_Respiratory_QOF register | B66: 115.8 | C66: 115.7757774 | D66: 2.101717198
A67: Betsi Cadwaladr University_Respiratory_Flu immunisation | B67: 124.9 | C67: 121.633769 | D67: 93.09394169
A68: Powys Teaching_Respiratory_Flu immunisation | B68: 117.3 | C68: 110.009151 | D68: 93.73729158
A69: Hywel Dda_Respiratory_Flu immunisation | B69: 106.1 | C69: 101.7209342 | D69: 93.18216405
A70: Abertawe Bro Morgannwg University_Respiratory_Flu immunisation | B70: 114.6 | C70: 115.093257 | D70: 92.00176757
A71: Cardiff and Vale University_Respiratory_Flu immunisation | B71: 98.2 | C71: 103.5803798 | D71: 93.16962108
A72: Cwm Taf_Respiratory_Flu immunisation | B72: 139.1 | C72: 142.6149674 | D72: 94.44358935
A73: Aneurin Bevan_Respiratory_Flu immunisation | B73: 114.5 | C73: 116.4974501 | D73: 93.38946961
A74: Wales_Respiratory_Flu immunisation | B74: 115.8 | C74: 115.7757774 | D74: 93.1760514
A75: Betsi Cadwaladr University_Respiratory_Emergency admissions | B75: 124.9 | C75: 121.633769 | D75: 300.1598424
A76: Powys Teaching_Respiratory_Emergency admissions | B76: 117.3 | C76: 110.009151 | D76: 191.9611868
A77: Hywel Dda_Respiratory_Emergency admissions | B77: 106.1 | C77: 101.7209342 | D77: 209.5322724
A78: Abertawe Bro Morgannwg University_Respiratory_Emergency admissions | B78: 114.6 | C78: 115.093257 | D78: 267.6674069
A79: Cardiff and Vale University_Respiratory_Emergency admissions | B79: 98.2 | C79: 103.5803798 | D79: 204.3061001
A80: Cwm Taf_Respiratory_Emergency admissions | B80: 139.1 | C80: 142.6149674 | D80: 365.1565566
A81: Aneurin Bevan_Respiratory_Emergency admissions | B81: 114.5 | C81: 116.4974501 | D81: 329.5110745
A82: Wales_Respiratory_Emergency admissions | B82: 115.8 | C82: 115.7757774 | D82: 276.0089727
A83: Betsi Cadwaladr University_Respiratory_Mortality | B83: 124.9 | C83: 121.633769 | D83: 19.0636227
A84: Powys Teaching_Respiratory_Mortality | B84: 117.3 | C84: 110.009151 | D84: 13.99251121
A85: Hywel Dda_Respiratory_Mortality | B85: 106.1 | C85: 101.7209342 | D85: 17.76759404
A86: Abertawe Bro Morgannwg University_Respiratory_Mortality | B86: 114.6 | C86: 115.093257 | D86: 18.72438204
A87: Cardiff and Vale University_Respiratory_Mortality | B87: 98.2 | C87: 103.5803798 | D87: 15.49421958
A88: Cwm Taf_Respiratory_Mortality | B88: 139.1 | C88: 142.6149674 | D88: 21.68144536
A89: Aneurin Bevan_Respiratory_Mortality | B89: 114.5 | C89: 116.4974501 | D89: 18.59399168
A90: Wales_Respiratory_Mortality | B90: 115.8 | C90: 115.7757774 | D90: 18.23937586
A91: Betsi Cadwaladr University_Respiratory_Currently being treated | B91: 124.9 | C91: 121.633769 | D91: 13.10763772
A92: Powys Teaching_Respiratory_Currently being treated | B92: 117.3 | C92: 110.009151 | D92: 14.26957941
A93: Hywel Dda_Respiratory_Currently being treated | B93: 106.1 | C93: 101.7209342 | D93: 14.07130433
A94: Abertawe Bro Morgannwg University_Respiratory_Currently being treated | B94: 114.6 | C94: 115.093257 | D94: 13.99040474
A95: Cardiff and Vale University_Respiratory_Currently being treated | B95: 98.2 | C95: 103.5803798 | D95: 13.50134856
A96: Cwm Taf_Respiratory_Currently being treated | B96: 139.1 | C96: 142.6149674 | D96: 14.66818181
A97: Aneurin Bevan_Respiratory_Currently being treated | B97: 114.5 | C97: 116.4974501 | D97: 14.23910496
A98: Wales_Respiratory_Currently being treated | B98: 115.8 | C98: 115.7757774 | D98: 13.84743361
A99: Betsi Cadwaladr University_Cancers_Smoking | B99: 130.7 | C99: 127.308361 | D99: 22.36430543
A100: Powys Teaching_Cancers_Smoking | B100: 131 | C100: 122.8374466 | D100: 19.88203434
A101: Hywel Dda_Cancers_Smoking | B101: 130.1 | C101: 124.6641847 | D101: 22.10384686
A102: Abertawe Bro Morgannwg University_Cancers_Smoking | B102: 121.5 | C102: 122.029482 | D102: 23.34378424
A103: Cardiff and Vale University_Cancers_Smoking | B103: 86.1 | C103: 90.84155105 | D103: 21.22060724
A104: Cwm Taf_Cancers_Smoking | B104: 124.1 | C104: 127.2802127 | D104: 26.26803835
A105: Aneurin Bevan_Cancers_Smoking | B105: 103.4 | C105: 105.2425011 | D105: 23.79908153
A106: Wales_Cancers_Smoking | B106: 116.4 | C106: 116.4550756 | D106: 22.84960949
A107: Betsi Cadwaladr University_Cancers_Healthy eating | B107: 130.7 | C107: 127.308361 | D107: 35.65484573
A108: Hywel Dda_Cancers_Healthy eating | B108: 130.1 | C108: 124.6641847 | D108: 38.47900858
A109: Powys Teaching_Cancers_Healthy eating | B109: 131 | C109: 122.8374466 | D109: 39.89574262
A110: Abertawe Bro Morgannwg University_Cancers_Healthy eating | B110: 121.5 | C110: 122.029482 | D110: 32.64726866
A111: Cwm Taf_Cancers_Healthy eating | B111: 124.1 | C111: 127.2802127 | D111: 30.12202729
A112: Cardiff and Vale University_Cancers_Healthy eating | B112: 86.1 | C112: 90.84155105 | D112: 33.64603084
A113: Aneurin Bevan_Cancers_Healthy eating | B113: 103.4 | C113: 105.2425011 | D113: 30.58418855
A114: Wales_Cancers_Healthy eating | B114: 116.4 | C114: 116.4550756 | D114: 33.91400621
A115: Betsi Cadwaladr University_Cancers_HPV vaccination | B115: 130.7 | C115: 127.308361 | D115: 87.66251729
A116: Powys Teaching_Cancers_HPV vaccination | B116: 131 | C116: 122.8374466 | D116: 82.3699422
A117: Hywel Dda_Cancers_HPV vaccination | B117: 130.1 | C117: 124.6641847 | D117: 85.46511628
A118: Abertawe Bro Morgannwg University_Cancers_HPV vaccination | B118: 121.5 | C118: 122.029482 | D118: 88.24633872
A119: Cardiff and Vale University_Cancers_HPV vaccination | B119: 86.1 | C119: 90.84155105 | D119: 83.49320544
A120: Cwm Taf_Cancers_HPV vaccination | B120: 124.1 | C120: 127.2802127 | D120: 91.96141479
A121: Aneurin Bevan_Cancers_HPV vaccination | B121: 103.4 | C121: 105.2425011 | D121: 86.29080119
A122: Wales_Cancers_HPV vaccination | B122: 116.4 | C122: 116.4550756 | D122: 86.57816211
A123: Betsi Cadwaladr University_Cancers_Incidence | B123: 130.7 | C123: 127.308361 | D123: 634.8996941
A124: Powys Teaching_Cancers_Incidence | B124: 131 | C124: 122.8374466 | D124: 635.4826573
A125: Hywel Dda_Cancers_Incidence | B125: 130.1 | C125: 124.6641847 | D125: 602.39777
A126: Abertawe Bro Morgannwg University_Cancers_Incidence | B126: 121.5 | C126: 122.029482 | D126: 578.1147406
A127: Cardiff and Vale University_Cancers_Incidence | B127: 86.1 | C127: 90.84155105 | D127: 496.4406021
A128: Cwm Taf_Cancers_Incidence | B128: 124.1 | C128: 127.2802127 | D128: 559.1729041
A129: Aneurin Bevan_Cancers_Incidence | B129: 103.4 | C129: 105.2425011 | D129: 567.3980605
A130: Wales_Cancers_Incidence | B130: 116.4 | C130: 116.4550756 | D130: 580.320198
A131: Betsi Cadwaladr University_Cancers_Treatment | B131: 130.7 | C131: 127.308361 | D131: 88.6
A132: Hywel Dda_Cancers_Treatment | B132: 130.1 | C132: 124.6641847 | D132: 81
A133: Abertawe Bro Morgannwg University_Cancers_Treatment | B133: 121.5 | C133: 122.029482 | D133: 76
A134: Cwm Taf_Cancers_Treatment | B134: 124.1 | C134: 127.2802127 | D134: 86.5
A135: Aneurin Bevan_Cancers_Treatment | B135: 103.4 | C135: 105.2425011 | D135: 93.2
A136: Cardiff and Vale University_Cancers_Treatment | B136: 86.1 | C136: 90.84155105 | D136: 90
A137: Wales_Cancers_Treatment | B137: 116.4 | C137: 116.4550756 | D137: 85.7
A138: Betsi Cadwaladr University_Cancers_Survival | B138: 130.7 | C138: 127.308361 | D138: 69.8
A139: Powys Teaching_Cancers_Survival | B139: 131 | C139: 122.8374466 | D139: 72
A140: Hywel Dda_Cancers_Survival | B140: 130.1 | C140: 124.6641847 | D140: 69
A141: Abertawe Bro Morgannwg University_Cancers_Survival | B141: 121.5 | C141: 122.029482 | D141: 67.6
A142: Cwm Taf_Cancers_Survival | B142: 124.1 | C142: 127.2802127 | D142: 65.5
A143: Aneurin Bevan_Cancers_Survival | B143: 103.4 | C143: 105.2425011 | D143: 67.6
A144: Cardiff and Vale University_Cancers_Survival | B144: 86.1 | C144: 90.84155105 | D144: 70.1
A145: Wales_Cancers_Survival | B145: 116.4 | C145: 116.4550756 | D145: 68.6
A146: Betsi Cadwaladr University_Cancers_Mortality | B146: 130.7 | C146: 127.308361 | D146: 309.5577729
A147: Powys Teaching_Cancers_Mortality | B147: 131 | C147: 122.8374466 | D147: 290.6623947
A148: Hywel Dda_Cancers_Mortality | B148: 130.1 | C148: 124.6641847 | D148: 298.0838607
A149: Abertawe Bro Morgannwg University_Cancers_Mortality | B149: 121.5 | C149: 122.029482 | D149: 285.7625385
A150: Cardiff and Vale University_Cancers_Mortality | B150: 86.1 | C150: 90.84155105 | D150: 239.6168601
A151: Cwm Taf_Cancers_Mortality | B151: 124.1 | C151: 127.2802127 | D151: 286.5461148
A152: Aneurin Bevan_Cancers_Mortality | B152: 103.4 | C152: 105.2425011 | D152: 273.3772483
A153: Wales_Cancers_Mortality | B153: 116.4 | C153: 116.4550756 | D153: 283.6746802
A154: Betsi Cadwaladr University_Healthy Individuals_Deprivation | B154: 36.4 | C154: 35.4665537 | D154: 11.92154007
A155: Powys Teaching_Healthy Individuals_Deprivation | B155: 65.2 | C155: 61.09114739 | D155: 0.8612739232
A156: Hywel Dda_Healthy Individuals_Deprivation | B156: 49.5 | C156: 47.44031627 | D156: 7.932411986
A157: Abertawe Bro Morgannwg University_Healthy Individuals_Deprivation | B157: 42.8 | C157: 42.96272128 | D157: 26.63798212
A158: Cardiff and Vale University_Healthy Individuals_Deprivation | B158: 44.7 | C158: 47.17546592 | D158: 22.11509989
A159: Cwm Taf_Healthy Individuals_Deprivation | B159: 79.8 | C159: 81.82149513 | D159: 34.17181595
A160: Aneurin Bevan_Healthy Individuals_Deprivation | B160: 47.2 | C160: 48.05790919 | D160: 22.87022194
A161: Wales_Healthy Individuals_Deprivation | B161: 47.8 | C161: 47.84073935 | D161: 19.18248554
A162: Betsi Cadwaladr University_Healthy Individuals_Childhood vaccinations | B162: 36.4 | C162: 35.4665537 | D162: 85.09171328
A163: Powys Teaching_Healthy Individuals_Childhood vaccinations | B163: 65.2 | C163: 61.09114739 | D163: 84.74842767
A164: Hywel Dda_Healthy Individuals_Childhood vaccinations | B164: 49.5 | C164: 47.44031627 | D164: 80.79539508
A165: Abertawe Bro Morgannwg University_Healthy Individuals_Childhood vaccinations | B165: 42.8 | C165: 42.96272128 | D165: 82.57232485
A166: Cardiff and Vale University_Healthy Individuals_Childhood vaccinations | B166: 44.7 | C166: 47.17546592 | D166: 79.18968692
A167: Cwm Taf_Healthy Individuals_Childhood vaccinations | B167: 79.8 | C167: 81.82149513 | D167: 84.97159091
A168: Aneurin Bevan_Healthy Individuals_Childhood vaccinations | B168: 47.2 | C168: 48.05790919 | D168: 80.94006037
A169: Wales_Healthy Individuals_Childhood vaccinations | B169: 47.8 | C169: 47.84073935 | D169: 82.35796668
A170: Betsi Cadwaladr University_Healthy Individuals_Flu vaccination, 65+ | B170: 36.4 | C170: 35.4665537 | D170: 70.03783102
A171: Powys Teaching_Healthy Individuals_Flu vaccination, 65+ | B171: 65.2 | C171: 61.09114739 | D171: 67.68283435
A172: Hywel Dda_Healthy Individuals_Flu vaccination, 65+ | B172: 49.5 | C172: 47.44031627 | D172: 65.38167894
A173: Abertawe Bro Morgannwg University_Healthy Individuals_Flu vaccination, 65+ | B173: 42.8 | C173: 42.96272128 | D173: 65.36501371
A174: Cardiff and Vale University_Healthy Individuals_Flu vaccination, 65+ | B174: 44.7 | C174: 47.17546592 | D174: 69.26075287
A175: Cwm Taf_Healthy Individuals_Flu vaccination, 65+ | B175: 79.8 | C175: 81.82149513 | D175: 65.94763463
A176: Aneurin Bevan_Healthy Individuals_Flu vaccination, 65+ | B176: 47.2 | C176: 48.05790919 | D176: 68.09484231
A177: Wales_Healthy Individuals_Flu vaccination, 65+ | B177: 47.8 | C177: 47.84073935 | D177: 67.65655615
A178: Betsi Cadwaladr University_Healthy Individuals_Flu vaccination, at risk | B178: 36.4 | C178: 35.4665537 | D178: 52.07570629
A179: Powys Teaching_Healthy Individuals_Flu vaccination, at risk | B179: 65.2 | C179: 61.09114739 | D179: 49.27709152
A180: Hywel Dda_Healthy Individuals_Flu vaccination, at risk | B180: 49.5 | C180: 47.44031627 | D180: 48.01233125
A181: Abertawe Bro Morgannwg University_Healthy Individuals_Flu vaccination, at risk | B181: 42.8 | C181: 42.96272128 | D181: 45.20943669
A182: Cardiff and Vale University_Healthy Individuals_Flu vaccination, at risk | B182: 44.7 | C182: 47.17546592 | D182: 51.47582335
A183: Cwm Taf_Healthy Individuals_Flu vaccination, at risk | B183: 79.8 | C183: 81.82149513 | D183: 51.01683997
A184: Aneurin Bevan_Healthy Individuals_Flu vaccination, at risk | B184: 47.2 | C184: 48.05790919 | D184: 50.20445115
A185: Wales_Healthy Individuals_Flu vaccination, at risk | B185: 47.8 | C185: 47.84073935 | D185: 49.70169375
A186: Betsi Cadwaladr University_Healthy Individuals_General health | B186: 36.4 | C186: 35.4665537 | D186: 17.85101187
A187: Powys Teaching_Healthy Individuals_General health | B187: 65.2 | C187: 61.09114739 | D187: 19.82403786
A188: Hywel Dda_Healthy Individuals_General health | B188: 49.5 | C188: 47.44031627 | D188: 20.1967748
A189: Abertawe Bro Morgannwg University_Healthy Individuals_General health | B189: 42.8 | C189: 42.96272128 | D189: 21.00450821
A190: Cardiff and Vale University_Healthy Individuals_General health | B190: 44.7 | C190: 47.17546592 | D190: 18.68158016
A191: Cwm Taf_Healthy Individuals_General health | B191: 79.8 | C191: 81.82149513 | D191: 24.50917404
A192: Aneurin Bevan_Healthy Individuals_General health | B192: 47.2 | C192: 48.05790919 | D192: 22.33794309
A193: Wales_Healthy Individuals_General health | B193: 47.8 | C193: 47.84073935 | D193: 20.36000556
A194: Betsi Cadwaladr University_Healthy Individuals_Bowel screening | B194: 36.4 | C194: 35.4665537 | D194: 54.12830899
A195: Powys Teaching_Healthy Individuals_Bowel screening | B195: 65.2 | C195: 61.09114739 | D195: 56.89999536
A196: Hywel Dda_Healthy Individuals_Bowel screening | B196: 49.5 | C196: 47.44031627 | D196: 56.97594137
A197: Abertawe Bro Morgannwg University_Healthy Individuals_Bowel screening | B197: 42.8 | C197: 42.96272128 | D197: 56.99258726
A198: Cardiff and Vale University_Healthy Individuals_Bowel screening | B198: 44.7 | C198: 47.17546592 | D198: 51.26620746
A199: Cwm Taf_Healthy Individuals_Bowel screening | B199: 79.8 | C199: 81.82149513 | D199: 56.58574449
A200: Aneurin Bevan_Healthy Individuals_Bowel screening | B200: 47.2 | C200: 48.05790919 | D200: 54.82690193
A201: Wales_Healthy Individuals_Bowel screening | B201: 47.8 | C201: 47.84073935 | D201: 55.1538795
... 186 more rows

Sheet Table data (hidden)
D1: Measures
A2: HB_ProgrammeBudget | B2: crude exp | C2: adj exp | D2: 4 | E2: 5 | F2: 6 | G2: 7 | H2: 8 | I2: 9 | J2: 10 | K2: 11 | L2: 12 | M2: 13
A3: Betsi Cadwaladr University_Circulatory | B3: 172.2 | C3: 167.6968558 | D3: 22.36430543 | E3: 1.05682304 | F3: 4.242464546 | G3: 64.20895011 | H3: 98.2097866
A4: Powys Teaching_Circulatory | B4: 183.4 | C4: 171.8963431 | D4: 19.88203434 | E4: 1.328820359 | F4: 4.159607829 | G4: 73.92761109 | H4: 81.99611568
A5: Hywel Dda_Circulatory | B5: 157.5 | C5: 150.9460045 | D5: 22.10384686 | E5: 1.491075475 | F5: 4.321651313 | G5: 50.03886556 | H5: 98.44994733
A6: Abertawe Bro Morgannwg University_Circulatory | B6: 150.8 | C6: 151.3814612 | D6: 23.34378424 | E6: 2.279682921 | F6: 4.152378291 | G6: 50.95963195 | H6: 102.1008757
A7: Cardiff and Vale University_Circulatory | B7: 104.4 | C7: 110.1453807 | D7: 21.22060724 | E7: 0.5642497167 | F7: 3.021570657 | G7: 30.56043129 | H7: 67.19275423
A8: Cwm Taf_Circulatory | B8: 154.6 | C8: 158.5477251 | D8: 26.26803835 | E8: 1.122321546 | F8: 4.081043013 | G8: 39.92833376 | H8: 110.8710274
A9: Aneurin Bevan_Circulatory | B9: 135.1 | C9: 137.4521444 | D9: 23.79908153 | E9: 1.074838869 | F9: 4.067050378 | G9: 40.01454442 | H9: 96.68875675
A10: Wales_Circulatory | B10: 148.1 | C10: 148.1085415 | D10: 22.84960949 | E10: 1.260967164 | F10: 3.993046073 | G10: 48.88227947 | H10: 94.31441507
A11: Betsi Cadwaladr University_Respiratory | B11: 124.9 | C11: 121.633769 | D11: 22.36430543 | E11: 1.05682304 | F11: 2.407892931 | G11: 93.09394169 | H11: 300.1598424 | I11: 19.0636227 | J11: 13.10763772
A12: Powys Teaching_Respiratory | B12: 117.3 | C12: 110.009151 | D12: 19.88203434 | E12: 1.328820359 | F12: 2.107919115 | G12: 93.73729158 | H12: 191.9611868 | I12: 13.99251121 | J12: 14.26957941
A13: Hywel Dda_Respiratory | B13: 106.1 | C13: 101.7209342 | D13: 22.10384686 | E13: 1.491075475 | F13: 2.028982553 | G13: 93.18216405 | H13: 209.5322724 | I13: 17.76759404 | J13: 14.07130433
A14: Abertawe Bro Morgannwg University_Respiratory | B14: 114.6 | C14: 115.093257 | D14: 23.34378424 | E14: 2.279682921 | F14: 2.074442363 | G14: 92.00176757 | H14: 267.6674069 | I14: 18.72438204 | J14: 13.99040474
A15: Cardiff and Vale University_Respiratory | B15: 98.2 | C15: 103.5803798 | D15: 21.22060724 | E15: 0.5642497167 | F15: 1.453431441 | G15: 93.16962108 | H15: 204.3061001 | I15: 15.49421958 | J15: 13.50134856
A16: Cwm Taf_Respiratory | B16: 139.1 | C16: 142.6149674 | D16: 26.26803835 | E16: 1.122321546 | F16: 2.647588967 | G16: 94.44358935 | H16: 365.1565566 | I16: 21.68144536 | J16: 14.66818181
A17: Aneurin Bevan_Respiratory | B17: 114.5 | C17: 116.4974501 | D17: 23.79908153 | E17: 1.074838869 | F17: 2.075448378 | G17: 93.38946961 | H17: 329.5110745 | I17: 18.59399168 | J17: 14.23910496
A18: Wales_Respiratory | B18: 115.8 | C18: 115.7757774 | D18: 22.84960949 | E18: 1.260967164 | F18: 2.101717198 | G18: 93.1760514 | H18: 276.0089727 | I18: 18.23937586 | J18: 13.84743361
A19: Betsi Cadwaladr University_Cancers | B19: 130.7 | C19: 127.308361 | D19: 22.36430543 | E19: 35.65484573 | F19: 87.66251729 | G19: 634.8996941 | H19: 88.6 | I19: 69.8 | J19: 309.5577729
A20: Powys Teaching_Cancers | B20: 131 | C20: 122.8374466 | D20: 19.88203434 | E20: 39.89574262 | F20: 82.3699422 | G20: 635.4826573 | H20: n/a | I20: 72 | J20: 290.6623947
A21: Hywel Dda_Cancers | B21: 130.1 | C21: 124.6641847 | D21: 22.10384686 | E21: 38.47900858 | F21: 85.46511628 | G21: 602.39777 | H21: 81 | I21: 69 | J21: 298.0838607
A22: Abertawe Bro Morgannwg University_Cancers | B22: 121.5 | C22: 122.029482 | D22: 23.34378424 | E22: 32.64726866 | F22: 88.24633872 | G22: 578.1147406 | H22: 76 | I22: 67.6 | J22: 285.7625385
A23: Cardiff and Vale University_Cancers | B23: 86.1 | C23: 90.84155105 | D23: 21.22060724 | E23: 33.64603084 | F23: 83.49320544 | G23: 496.4406021 | H23: 90 | I23: 70.1 | J23: 239.6168601
A24: Cwm Taf_Cancers | B24: 124.1 | C24: 127.2802127 | D24: 26.26803835 | E24: 30.12202729 | F24: 91.96141479 | G24: 559.1729041 | H24: 86.5 | I24: 65.5 | J24: 286.5461148
A25: Aneurin Bevan_Cancers | B25: 103.4 | C25: 105.2425011 | D25: 23.79908153 | E25: 30.58418855 | F25: 86.29080119 | G25: 567.3980605 | H25: 93.2 | I25: 67.6 | J25: 273.3772483
A26: Wales_Cancers | B26: 116.4 | C26: 116.4550756 | D26: 22.84960949 | E26: 33.91400621 | F26: 86.57816211 | G26: 580.320198 | H26: 85.7 | I26: 68.6 | J26: 283.6746802
A27: Betsi Cadwaladr University_Healthy Individuals | B27: 36.4 | C27: 35.4665537 | D27: 11.92154007 | E27: 85.09171328 | F27: 70.03783102 | G27: 52.07570629 | H27: 17.85101187 | I27: 54.12830899 | J27: 65.70006664 | K27: 67.88072535 | L27: 60.9305493 | M27: 62.97433931
A28: Powys Teaching_Healthy Individuals | B28: 65.2 | C28: 61.09114739 | D28: 0.8612739232 | E28: 84.74842767 | F28: 67.68283435 | G28: 49.27709152 | H28: 19.82403786 | I28: 56.89999536 | J28: 67.70229904 | K28: 67.47191268 | L28: 62.46860193 | M28: 63.33900491
A29: Hywel Dda_Healthy Individuals | B29: 49.5 | C29: 47.44031627 | D29: 7.932411986 | E29: 80.79539508 | F29: 65.38167894 | G29: 48.01233125 | H29: 20.1967748 | I29: 56.97594137 | J29: 64.01189811 | K29: 65.6794546 | L29: 59.49333259 | M29: 61.23657375
A30: Abertawe Bro Morgannwg University_Healthy Individuals | B30: 42.8 | C30: 42.96272128 | D30: 26.63798212 | E30: 82.57232485 | F30: 65.36501371 | G30: 45.20943669 | H30: 21.00450821 | I30: 56.99258726 | J30: 61.74518712 | K30: 64.47585455 | L30: 57.57711474 | M30: 59.49627838
A31: Cardiff and Vale University_Healthy Individuals | B31: 44.7 | C31: 47.17546592 | D31: 22.11509989 | E31: 79.18968692 | F31: 69.26075287 | G31: 51.47582335 | H31: 18.68158016 | I31: 51.26620746 | J31: 64.18341789 | K31: 66.25472029 | L31: 60.12829223 | M31: 62.4960739
A32: Cwm Taf_Healthy Individuals | B32: 79.8 | C32: 81.82149513 | D32: 34.17181595 | E32: 84.97159091 | F32: 65.94763463 | G32: 51.01683997 | H32: 24.50917404 | I32: 56.58574449 | J32: 59.96205581 | K32: 60.62421078 | L32: 56.10513081 | M32: 58.48276725
A33: Aneurin Bevan_Healthy Individuals | B33: 47.2 | C33: 48.05790919 | D33: 22.87022194 | E33: 80.94006037 | F33: 68.09484231 | G33: 50.20445115 | H33: 22.33794309 | I33: 54.82690193 | J33: 61.95942606 | K33: 63.38916252 | L33: 57.89476094 | M33: 60.06768169
A34: Wales_Healthy Individuals | B34: 47.8 | C34: 47.84073935 | D34: 19.18248554 | E34: 82.35796668 | F34: 67.65655615 | G34: 49.70169375 | H34: 20.36000556 | I34: 55.1538795 | J34: 63.46498149 | K34: 65.26058186 | L34: 59.14971321 | M34: 61.16829593
A35: Betsi Cadwaladr University_Mental health problems | B35: 197.3 | C35: 192.1848919 | D35: 12.68375185 | E35: 0.7810300258 | F35: 34.15300546 | G35: 624.8240206 | H35: 178.5416797 | I35: 77.77776 | J35: 9.361237132
A36: Powys Teaching_Mental health problems | B36: 211.2 | C36: 197.9967468 | D36: 9.970795784 | E36: 0.8614785712 | F36: 38.11115754 | G36: n/a | H36: 105.7540742 | I36: 79.8221 | J36: 7.711489403
A37: Hywel Dda_Mental health problems | B37: 198.9 | C37: 190.6624278 | D37: 12.96634234 | E37: 0.8402290885 | F37: 34.37243642 | G37: 424.1908528 | H37: 127.9452605 | I37: 75.75143 | J37: 9.019347444
A38: Abertawe Bro Morgannwg University_Mental health problems | B38: 213.6 | C38: 214.4569084 | D38: 16.31383853 | E38: 0.9546627146 | F38: 42.81289596 | G38: 662.12258 | H38: 160.0572196 | I38: 73.59216 | J38: 11.79364099
A39: Cardiff and Vale University_Mental health problems | B39: 216.5 | C39: 228.5076299 | D39: 13.11491477 | E39: 0.8071510506 | F39: 44.38432836 | G39: 568.9821032 | H39: 262.0076138 | I39: 74.61896 | J39: 10.4484584
A40: Cwm Taf_Mental health problems | B40: 267.3 | C40: 274.0497271 | D40: 19.85939497 | E40: 0.8483841631 | F40: 38.77495215 | G40: 607.7114 | H40: 122.2876319 | I40: 70.01024 | J40: 13.51816976
A41: Aneurin Bevan_Mental health problems | B41: 191.9 | C41: 195.2274316 | D41: 16.63776786 | E41: 0.8179197413 | F41: 40.93017093 | G41: 579.074483 | H41: 253.7154084 | I41: 71.45166 | J41: 11.7770682
A42: Wales_Mental health problems | B42: 209.5 | C42: 209.5156581 | D42: 14.73533163 | E42: 0.8389477696 | F42: 38.53087582 | G42: 562.6365154 | H42: 188.1541651 | I42: 74.51558 | J42: 10.66180071
A43: Betsi Cadwaladr University_Musculoskeletal | B43: 124.6 | C43: 121.3295961 | D43: 55.45312889 | E43: 31.51371768 | F43: 11.91548231 | G43: 118.1697244 | H43: 145.2715354 | I43: 8.451102359 | J43: 6.654028869
A44: Powys Teaching_Musculoskeletal | B44: 108.9 | C44: 102.0557486 | D44: 56.05287476 | E44: 37.05354379 | F44: 11.25191895 | G44: 172.1636231 | H44: 184.6937267 | I44: 10.525287 | J44: 6.515653858
A45: Hywel Dda_Musculoskeletal | B45: 132 | C45: 126.4966325 | D45: 56.80793507 | E45: 31.759769 | F45: 12.40713207 | G45: 143.9822349 | H45: 166.5917398 | I45: 13.58322971 | J45: 12.88215979
A46: Abertawe Bro Morgannwg University_Musculoskeletal | B46: 122.3 | C46: 122.8436839 | D46: 58.88198938 | E46: 28.09777946 | F46: 13.52954488 | G46: 66.02764495 | H46: 152.0381913 | I46: 6.208280035 | J46: 7.760350044
A47: Cardiff and Vale University_Musculoskeletal | B47: 97.4 | C47: 102.7823868 | D47: 51.83020056 | E47: 27.12814327 | F47: 10.50377068 | G47: 71.73509164 | H47: 130.6476247 | I47: 10.25804687 | J47: 9.616918939
A48: Cwm Taf_Musculoskeletal | B48: 103.3 | C48: 105.881498 | D48: 63.26239136 | E48: 26.97775308 | F48: 16.66405736 | G48: 82.70056594 | H48: 120.353781 | I48: 6.825356198 | J48: 6.825356198
A49: Aneurin Bevan_Musculoskeletal | B49: 112.9 | C49: 114.8628993 | D49: 60.11793131 | E49: 28.5844477 | F49: 14.10211925 | G49: 85.42235352 | H49: 128.9744156 | I49: 8.872790284 | J49: 8.64082191
A50: Wales_Musculoskeletal | B50: 116 | C50: 116.0157025 | D50: 57.28122813 | E50: 29.56243181 | F50: 12.85841075 | G50: 99.20677193 | H50: 144.1994467 | I50: 9.079386286 | J50: 8.565871057
A51: England_Circulatory | B51: 131.4544022 | C51: n/a | D51: n/a | E51: n/a | F51: 3.377799684 | G51: n/a | H51: 74.97589105
A52: England_Respiratory | B52: 83.82498401 | C52: n/a | D52: n/a | E52: n/a | F52: 1.690227155 | G52: 93.13455626 | H52: n/a | I52: 13.98408073 | J52: n/a
A53: England_Cancers | B53: 104.5166553 | C53: n/a | D53: n/a | E53: n/a | F53: n/a | G53: 484.8824535 | H53: 86.2 | I53: n/a | J53: 248.3603312
A54: England_Healthy Individuals | B54: 38.25120851 | C54: n/a | D54: n/a | E54: n/a | F54: 73.4 | G54: 51.3 | H54: n/a | I54: n/a | J54: n/a | K54: n/a | L54: n/a | M54: n/a
A55: England_Mental health problems | B55: 211.9771724 | C55: n/a | D55: 11.6 | E55: 0.8151319824 | F55: 44.2 | G55: n/a | H55: n/a | I55: n/a | J55: n/a
A56: England_Musculoskeletal | B56: 98.02823848 | C56: n/a | D56: n/a | E56: n/a | F56: n/a | G56: n/a | H56: n/a | I56: n/a | J56: n/a
